Workbook

Sheet Om
C2: =+Tekst!A1 -> Auracoustics 1.21
D7: =+Tekst!A9 -> In product documentation from Trox Auranor, radiated sound power levels can be found. Resulting sound pressure levels are dependent on room volume, acoustic environment, number of sound sources and their location. In "Room acoustics" an indication of this is given for different examples.
D9: =+Tekst!A11 -> In "Acoustic calculations of duct system", SPL from fan to room is calculated for each octave band. User given noise and reduction values are basis for the calculations. In addition a power-level split model based on air flow rates is applied to branches. Other noise generation or reduction in the duct system is not taken into consideration.
D11: =+Tekst!A13 -> It should be noted that the program is not designed for accurate calculations. Neither Trox Auranor nor the program developer can be held responsible for the use of the calculations.
D13: =+Tekst!A15 -> Developed by Radonor AS

Sheet startside
C2: =+Tekst!A1 -> Auracoustics 1.21
D7: =+Tekst!A2 -> Room acoustics
D9: =+Tekst!A3 -> Sound propagation
D11: =+Tekst!A4 -> dB-calculator
D13: =+Tekst!A5 -> Diagrams
D15: =+Tekst!A6 -> Room-to-room sound transmission
D17: =+Tekst!A7 -> Acoustic calculations of duct system
D19: =+Tekst!A8 -> About Auracoustics

Sheet Tekst (hidden)
A1: Auracoustics 1.21 | C1: Aurakustikk 1.21
A2: Room acoustics | C2: Romakustikk
A3: Sound propagation | C3: Lydutbredelse
A4: dB-calculator | C4: dB-kalkulator
A5: Diagrams | C5: Diagrammer
A6: Room-to-room sound transmission | C6: Overhøring mellom rom
A7: Acoustic calculations of duct system | C7: Lydberegninger i kanalsystem
A8: About Auracoustics | C8: Om Aurakustikk
A9: In product documentation from Trox Auranor, radiated sound power levels can be found. Resulting sound pressure levels are dependent on room volume, acoustic environment, number of sound sources and their location. In "Room acoustics" an indication of this is given for different examples. | C9: Trox Auranor oppgir i hovedsak avgitt lydeffektnivå i diagrammer. Resulterende lydtrykknivå i et rom er avhengig av rommet størrelse, akustiske omgivelser, antall lydkilder og plassering av disse. Under "Romakustikk" gis det en indikasjon på hvordan dette kan slå ut ved ulike forhold.
A11: In "Acoustic calculations of duct system", SPL from fan to room is calculated for each octave band. User given noise and reduction values are basis for the calculations. In addition a power-level split model based on air flow rates is applied to branches. Other noise generation or reduction in the duct system is not taken into consideration. | C11: Under "lydberegninger i kanalsystem" gis det mulighet for å beregne frekvensfordelt støy fra vifte til rom. Det beregnes med støy og demping i komponenter som legges inn av bruker. I tillegg beregnes andel av viftestøy til det aktuelle rommet som funksjon av luftmengdeandel. Det tas ikke hensyn til øvrig støyproduksjon og demping i kanalnettet.
A13: It should be noted that the program is not designed for accurate calculations. Neither Trox Auranor nor the program developer can be held responsible for the use of the calculations. | C13: Det gjøres oppmerksom på at programmet kun er ment til overslagsberegninger og at verken Trox Auranor eller programutvikler kan holdes ansvarlig for bruken av resultatene.
A15: Developed by Radonor AS | C15: Utviklet av: Radonor AS
A19: Click components to give characteristics | C19: Klikk på komponenter for å angi egenskaper
A20: Room length | C20: Romlengde
A21: Room width | C21: Rombredde
A22: Room height | C22: Romhøyde
A23: Type of room | C23: Type lokale
A24: ATD mounting | C24: Ventilplassering
A25: Distance from ATD to occupied zone | C25: Avstand fra ventil til oppholdssonen
A26: Sound power level from ATD | C26: Lydeffektnivå fra ventil
A27: Number of ATDs | C27: Antall ventiler
A28: Noise rating curve (NR) | C28: N-kurve
A29: Total A-weighted sound pr. level: | C29: Summert A-veid lydtrykknivå:
A30: Sound pressure level in occupied zone | C30: Lydtrykknivå i oppholdssonen
A31: Sound source mounting | C31: Lydkildeplassering
A32: Sound power level from sound source | C32: Kildens lydeffektnivå
A33: Distance from sound source | C33: Avstand fra kilde
A34: Free (square propagation) | C34: Fritt punkt (kuleutbredelse)
A35: Roof or wall (1/2-square) | C35: På tak eller vegg (1/2-kuleutbredelse)
A36: Corner between two surfaces (1/4-square) | C36: I hjørne mellom to flater (1/4-kuleutbredelse)
A37: Corner between three surfaces (1/8-square) | C37: I hjørne mellom tre flater (1/8-kuleutbredelse)
A38: recording studio | C38: lydstudio
A39: music room | C39: musikkrom
A40: hotel room | C40: hotellrom
A41: library | C41: bibliotek
A42: conference room | C42: konferanserom
A43: office | C43: kontor
A44: apartment | C44: leilighet
A45: classroom | C45: klasserom
A46: restaurant | C46: restaurant
A47: shop | C47: butikklokale
A48: hospital | C48: sykehus
A49: small church | C49: liten kirke
A50: museum | C50: museum
A51: factory | C51: fabrikk
A52: Indoor sports arena | C52: idrettshall
A53: cathedral | C53: stor kirke
A54: other | C54: annet
A55: Free | C55: fritt i rom
A56: Flush | C56: plant med én flate
A57: In corner between two surfaces | C57: i hjørne mellom to flater
A58: In corner between three surfaces | C58: i hjørne mellom tre flater
A59: Free field sound propagation | C59: Lydutbredelse i fritt felt
A60: Addition of similar dB-levels | C60: Addisjon av like dB-verdier
A61: Addition of different dB-levels | C61: Addisjon av ulike dB-verdier
A62: Subtraction of dB-levels | C62: Subtraksjon av dB-verdier
A63: Averaging dB-levels | C63: Midling av dB-verdier
A64: Resulting sound level | C64: Resulterende lydnivå:
A65: Area of dividing wall [m²] | C65: Skilleveggens areal [m²]
A66: Weighted sound reduction index of dividing wall, Rw [dB] | C66: Skilleveggens veide reduksjonstall, Rw' [dB]
A67: Calculation basis, supply air | C67: Beregningsgrunnlag, tilluft
A68: Connecting dimension ATD [mm] | C68: Anslutningsdimensjon ventil [mm]
A69: Main duct dimension before room branch [mm] | C69: Hovedkanaldimensjon før avgrening til rom 1 [mm]
A70: Main duct dimension between branches [mm] | C70: Hovedkanaldimensjon mellom avgreninger [mm]
A71: Main duct dimension after room branch [mm] | C71: Hovedkanaldimensjon etter avgrening til rom 2 [mm]
A72: Number of 90° bends from split to room | C72: Antall 90° bend fra avgrening til ventil
A73: Number of 90° bends between duct splits | C73: Antall 90° bend mellom avgreninger
A74: Octave band [Hz] | C74: Frekvensbånd [Hz]
A75: ATD transmission loss including end reflection [dB] | C75: Dempning i ventil/kammer inkl. enderefleksjon [dB]
A76: Other insertion loss [dB] | C76: Øvrig dempning [dB]
A77: Ducted silencer insertion loss [dB] | C77: Dempning i lyddemper [dB]
A78: Ø = Duct diameter [mm] | C78: Ø = kanaldiameter [mm]
A79: n = number of 90° bend | C79: n = antall 90° bend
A80: ATD transmission loss including end reflection [dB] | C80: Demping i ventil inklusive enderefleksjon [dB]
A81: Ducted silencer insertion loss for each branch [dB] | C81: Demping i lyddemper til hvert rom [dB]
A82: Other insertion loss from room to room [dB] | C82: Tilleggsdemping fra rom til rom [dB]
A83: Supply | C83: Tilluft
A84: Exhaust | C84: Avtrekk
A85: Required attenuation | C85: Dempebehov
A86: Sound power level from AHU to duct | C86: Avgitt lydeffektnivå fra aggregat til kanal
A87: Supply | C87: Tilluft
A88: Exhaust | C88: Avtrekk
A89: Air intake | C89: Inntak
A90: Air outlet | C90: Avkast
A91: Enter | C91: Registrér
A92: Main duct silencer insertion loss | C92: Statisk lyddemping i hovedlyddempere
A93: Branch silencer insertion loss | C93: Statisk lyddemping i grenlyddempere
A94: Sound power level from ATD | C94: Avgitt lydeffektnivå fra ventil
A95: ATD transmission loss including end reflection [dB] | C95: Statisk lyddemping i ventil inklusive enderefleksjon
A96: Sound power level from damper | C96: Avgitt lydeffektnivå fra spjeld
A97: KO-factor | C97: KO-faktor
A98: Sound power level from inlet/outlet | C98: Avgitt lydeffektnivå fra inntaks-/avkastenhet
A99: Inlet | C99: Inntak
A100: Outlet | C100: Avkast
A101: Transmission loss including end reflection [dB] | C101: Statisk lyddemping i enhet inklusive enderefleksjon
A102: Sound power level from component | C102: Avgitt lydeffektnivå fra ekstrakomponent
A103: Component insertion loss | C103: Statisk lyddemping i ekstrakomponent
A104: Number | C104: Antall
A105: Sound power level from supply: | C105: Lydeffektnivå til rom fra tilluft:
A106: Sound power level from exhaust: | C106: Lydeffektnivå til rom fra avtrekk:
A107: Total s. power. level. to room: | C107: Samlet lydeffektnivå til rom:
A108: Outdoor s. power level from inlet device: | C108: Lydeffektnivå til uteluft fra inntak:
A109: Outdoor s. power level from outlet device: | C109: Lydeffektnivå til uteluft fra avkast:
A110: (Sound power- or pressure level) | C110: (lydeffekt- eller lydtrykknivå)
A111: (for calculation of octave band sound power level) | C111: (for omregning til frekvensfordelt avgitt lydeffektnivå)
A112: Resulting room sound absorption: | C112: Resulterende romdemping:
A113: Sound pressure level in room: | C113: Lydtrykknivå i rom:
A114: With | C114: Med
A115: Room sound absorption | C115: romdemping
A116: Room- sound absorption | C116: Rom- demping
A117: Show calculation | C117: Vis beregning
A120: Ikke lenket: | C120: Ikke lenket:
A121: Average room absorption coefficient, am | C121: Middelabsorpsjonsfaktor, am
A122: Difference between sound power level from source and sound pressure level in a given distance [dB] | C122: Differanse mellom kildens lydeffektnivå og lydtrykknivå i en gitt avstand [dB]
A123: Value to be subtracted from the highest dB-value | C123: Verdi som skal trekkes fra den høyeste dB-verdien
A124: Difference between the dB-values to be subtracted | C124: Differanse mellom dB-verdiene som skal subtraheres
A125: Sound level source | C125: Lydnivå kilde
A126: To start | C126: Til startside
A127: Start new calculation | C127: Start ny beregning
A130: UTSKRIFTSSIDEN | C130: UTSKRIFTSSIDEN
A131: Calculation og noise and reduction from AHU to room | C131: Beregninger av lyd og lyddemping fra aggregat til rom
A133: Project | C133: Prosjekt
A136: SPL from supply ATDs | C136: LYDEFFEKTNIVÅ FRA TILLUFTSVENTILER
A137: SPL from AHU | C137: Lydeffektnivå fra aggregat
A138: "Power-split" based on air flow rates | C138: "Demping", korreksjon for luftmengdeandel til rom
A139: Insertion loss main ducted silencer | C139: Demping i hovedlyddemper
A140: Insertion loss component | C140: Demping i ekstrakomponent
A141: SPL after component ex gen. noise | C141: Lydeffektnivå etter demping i ekstrakomponent
A142: Noise generated in component | C142: Støygenerering i ekstrakomponent
A143: KO component | C143: KO for ekstrakomponent
A144: SPL from component | C144: Lydeffektnivå fra ekstrakomponent - bidrag fra komponent
A145: SPL after component | C145: Lydeffektnivå etter ekstrakomponent
A146: SPL from damper 1 | C146: Lydeffektnivå fra spjeld 1
A147: KO damper 1 | C147: KO for spjeld 1
A148: SPL from damper 1 | C148: Lydeffektnivå fra spjeld 1
A149: SPL after damper 1 | C149: Lydeffektnivå etter spjeld 1
A150: Insertion loss branch silencer 1 | C150: Demping i grenlyddemper 1
A151: SPL after branch silencer 1 | C151: Lydeffektnivå etter grendemper 1
A152: SPL from damper 2 | C152: Lydeffektnivå fra spjeld 2
A153: KO damper 2 | C153: KO for spjeld 2
A154: SPL from damper 2 | C154: Lydeffektnivå fra spjeld 2
A155: SPL after damper 2 | C155: Lydeffektnivå etter spjeld 2
A156: Insertion loss branch silencer 2 | C156: Demping i grenlyddemper 2
A157: SPL after branch silencer 2 | C157: Lydeffektnivå etter grendemper 2
A158: ATD transmission loss | C158: Demping i ventil
A159: Sound power level to room from duct | C159: Lydeffektnivå til rom - bidrag fra kanal
A160: ATD generated noise | C160: Støy generert i ventil
A161: KO ATD | C161: KO for ventil
A162: Sound power level from ATD | C162: Lydeffektnivå fra ventil
A163: Sound power level to room from ATD - ATD generated noise | C163: Lydeffektnivå til rom fra tilluftsventiler - ventilstøy
A164: Total SPL to room from supply ATDs - gen.noise + ducted noise | C164: Samlet lydeffektnivå til rom fra tilluftsventiler - ventilstøy + kanalstøy
A166: SPL from exhaust ATDs | C166: LYDEFFEKTNIVÅ FRA AVTREKKSVENTILER
A167: SPL from AHU | C167: Lydeffektnivå fra aggregat
A168: "Power-split" based on air flow rates | C168: "Demping", korreksjon for luftmengdeandel til rom
A169: Insertion loss main ducted silencer | C169: Demping i hovedlyddemper
A170: Insertion loss component | C170: Demping i ekstrakomponent
A171: SPL after component ex gen. noise | C171: Lydeffektnivå etter demping i ekstrakomponent
A172: Noise generated in component | C172: Støygenerering i ekstrakomponent
A173: KO component | C173: KO for ekstrakomponent
A174: SPL from component | C174: Lydeffektnivå fra ekstrakomponent - bidrag fra komponent
A175: SPL after component | C175: Lydeffektnivå etter ekstrakomponent
A176: SPL from damper 1 | C176: Lydeffektnivå fra spjeld 1
A177: KO damper 1 | C177: KO for spjeld 1
A178: SPL from damper 1 | C178: Lydeffektnivå fra spjeld 1
A179: SPL after damper 1 | C179: Lydeffektnivå etter spjeld 1
A180: Insertion loss branch silencer 1 | C180: Demping i grenlyddemper 1
A181: SPL after branch silencer 1 | C181: Lydeffektnivå etter grendemper 1
A182: SPL from damper 2 | C182: Lydeffektnivå fra spjeld 2
A183: KO damper 2 | C183: KO for spjeld 2
A184: SPL from damper 2 | C184: Lydeffektnivå fra spjeld 2
A185: SPL after damper 2 | C185: Lydeffektnivå etter spjeld 2
A186: Insertion loss branch silencer 2 | C186: Demping i grenlyddemper 2
A187: SPL after branch silencer 2 | C187: Lydeffektnivå etter grendemper 2
A188: ATD transmission loss | C188: Demping i ventil
A189: Sound power level to room from duct | C189: Lydeffektnivå til rom - bidrag fra kanal
A190: ATD generated noise | C190: Støy generert i ventil
A191: KO ATD | C191: KO for ventil
A192: Sound power level from ATD | C192: Lydeffektnivå fra ventil
A193: Sound power level to room from ATD - ATD generated noise | C193: Lydeffektnivå til rom fra avtrekksventiler - ventilstøy
A194: Total SPL to room from exhaust ATDs - gen.noise + ducted noise | C194: Samlet lydeffektnivå til rom fra avtrekksventiler - ventilstøy + kanalstøy
A196: Sound pressure level in room | C196: LYDTRYKKNIVÅ I ROM
A197: Total SPL to room from supply and exhaust | C197: Summert lydeffektnivå til rom fra tilluft og avtrekk
A198: Room sound absorption | C198: Romdemping
A199: Sound pressure level in room | C199: Lydtrykknivå i rom
A201: Sound power level from intake | C201: LYDEFFEKTNIVÅ FRA INNTAKSENHET
A202: Sound power level from AHU | C202: Lydeffektnivå fra aggregat
A203: Main silencer insertion loss | C203: Demping i hovedlyddemper
A204: Intake sound transmission loss | C204: Demping i inntaksenhet
A205: SPL to outdoor - from duct | C205: Lydeffektnivå til ute - bidrag fra kanal
A206: Intake gen. Noise | C206: Støy generert i inntaksenhet
A207: KO intake | C207: KO for inntaksenhet
A208: SPL from intake | C208: Lydeffektnivå fra inntaksenhet
A209: Total SPL to outdoor from intake + duct | C209: Samlet lydeffektnivå til ute fra inntaksenhet + kanalstøy
A211: Sound power level from oulet | C211: LYDEFFEKTNIVÅ FRA AVKASTENHET
A212: Sound power level from AHU | C212: Lydeffektnivå fra aggregat
A213: Main silencer insertion loss | C213: Demping i hovedlyddemper
A214: outlet sound transmission loss | C214: Demping i avkastenhet
A215: SPL to outdoor - from duct | C215: Lydeffektnivå til ute - bidrag fra kanal
A216: outlet gen. noise | C216: Støy generert i avkastenhet
A217: KO outlet | C217: KO for avkastenhet
... 2 more rows

Sheet skjermbrom
C2: =+Tekst!A1 -> Auracoustics 1.21
K6: =+CONCATENATE(Tekst!A29,ROUND(beregningerrom!C58,0)," dB(A)") -> Total A-weighted sound pr. level: 23 dB(A)
C7: =+Tekst!A20 -> Room length | D7: 8 | E7: m | K7: =+CONCATENATE(Tekst!A112,ROUND(beregningerrom!C63,0)," dB(A)") -> Resulting room sound absorption:10 dB(A)
C8: =+Tekst!A21 -> Room width | D8: 4 | E8: m
C9: =+Tekst!A22 -> Room height | D9: 3 | E9: m
C11: =+Tekst!A23 -> Type of room | E11: 7
C12: Average room abs. coefficient, am | D12: 0.25
C13: =+Tekst!A24 -> ATD mounting | E13: 2
C14: =+Tekst!A25 -> Distance from ATD to occupied zone | D14: 1.9 | E14: m
C15: =+Tekst!A26 -> Sound power level from ATD | D15: 33 | E15: dB(A)
C16: =+Tekst!A27 -> Number of ATDs | D16: 1
C17: =+Tekst!A28 -> Noise rating curve (NR) | D17: 30 | E17: Hz | F17: 63 | G17: 125 | H17: 250 | I17: 500 | J17: 1k | K17: 2k | L17: 4k | M17: 8k
E19: KO | F19: 2 | G19: 1 | H19: -4 | I19: -6 | J19: -8 | K19: -9 | L19: -12 | M19: -13
E20: =+Tekst!A30 -> Sound pressure level in occupied zone | F20: =IF(beregningerrom!C56<9.500001,"<9,5",IF(AND(ISNUMBER(F19),beregningerrom!C56>9.5),beregningerrom!C56,"")) -> 26.44512236 | G20: =IF(beregningerrom!D56<9.500001,"<9,5",IF(AND(ISNUMBER(G19),beregningerrom!D56>9.5),beregningerrom!D56,"")) -> 25.44512236 | H20: =IF(beregningerrom!E56<9.500001,"<9,5",IF(AND(ISNUMBER(H19),beregningerrom!E56>9.5),beregningerrom!E56,"")) -> 20.44512236 | I20: =IF(beregningerrom!F56<9.500001,"<9,5",IF(AND(ISNUMBER(I19),beregningerrom!F56>9.5),beregningerrom!F56,"")) -> 18.44512236 | J20: =IF(beregningerrom!G56<9.500001,"<9,5",IF(AND(ISNUMBER(J19),beregningerrom!G56>9.5),beregningerrom!G56,"")) -> 16.44512236 | K20: =IF(beregningerrom!H56<9.500001,"<9,5",IF(AND(ISNUMBER(K19),beregningerrom!H56>9.5),beregningerrom!H56,"")) -> 15.44512236 | L20: =IF(beregningerrom!I56<9.500001,"<9,5",IF(AND(ISNUMBER(L19),beregningerrom!I56>9.5),beregningerrom!I56,"")) -> 12.44512236 | M20: =IF(beregningerrom!J56<9.500001,"<10",IF(AND(ISNUMBER(M19),beregningerrom!J56>9.5),beregningerrom!J56,"")) -> 11.44512236

Sheet beregningerrom (hidden)
B4: eksempler på abs.koeff. | E4: Ventilplasseringer
C5: αm
A6: 1 | B6: =+Tekst!A38 -> recording studio | C6: 0.4 | E6: 1 | F6: =+Tekst!A55 -> Free | G6: 1
A7: 2 | B7: =+Tekst!A39 -> music room | C7: 0.35 | E7: 2 | F7: =+Tekst!A56 -> Flush | G7: 2
A8: 3 | B8: =+Tekst!A40 -> hotel room | C8: 0.3 | E8: 3 | F8: =+Tekst!A57 -> In corner between two surfaces | G8: 4
A9: 4 | B9: =+Tekst!A41 -> library | C9: 0.25 | E9: 4 | F9: =+Tekst!A58 -> In corner between three surfaces | G9: 8
A10: 5 | B10: =+Tekst!A42 -> conference room | C10: 0.25
A11: 6 | B11: =+Tekst!A43 -> office | C11: 0.25
A12: 7 | B12: =+Tekst!A44 -> apartment | C12: 0.25
A13: 8 | B13: =+Tekst!A45 -> classroom | C13: 0.2 | F13: valgt plassering: | G13: =VLOOKUP(skjermbrom!E13,E6:G9,2) -> Flush
A14: 9 | B14: =+Tekst!A46 -> restaurant | C14: 0.2 | F14: Retningsfaktor: | G14: =VLOOKUP(skjermbrom!E13,E6:G9,3) -> 2
A15: 10 | B15: =+Tekst!A47 -> shop | C15: 0.15
A16: 11 | B16: =+Tekst!A48 -> hospital | C16: 0.15
A17: 12 | B17: =+Tekst!A49 -> small church | C17: 0.1
A18: 13 | B18: =+Tekst!A50 -> museum | C18: 0.1
A19: 14 | B19: =+Tekst!A51 -> factory | C19: 0.05
A20: 15 | B20: =+Tekst!A52 -> Indoor sports arena | C20: 0.05
A21: 16 | B21: =+Tekst!A53 -> cathedral | C21: 0.05
A22: 17 | B22: =+Tekst!A54 -> other | C22: 0.01
A23: valgt fra liste: | C23: =VLOOKUP(skjermbrom!E11,A6:C22,3) -> 0.25
A24: Fra skjermbilde
A25: Oppgitt LwA (sum) | B25: (fra skjermbilde) | C25: =+skjermbrom!D15 -> 33 | D25: =+$C25 -> 33 | E25: =+$C25 -> 33 | F25: 33 | G25: 33 | H25: 33 | I25: 33 | J25: 33
A26: Antall ventiler | C26: =+IF(skjermbrom!D16="",1,skjermbrom!D16) -> 1 | D26: =+$C26 -> 1 | E26: 1 | F26: 1 | G26: 1 | H26: 1 | I26: 1 | J26: 1
C27: 63 | D27: 125 | E27: 250 | F27: 500 | G27: 1000 | H27: 2000 | I27: 4000 | J27: 8000
A28: Oppgitt KO | B28: (fra skjermbilde) | C28: =+IF(skjermbrom!F19="",D28,skjermbrom!F19) -> 2 | D28: =skjermbrom!G19 -> 1 | E28: =skjermbrom!H19 -> -4 | F28: =skjermbrom!I19 -> -6 | G28: =skjermbrom!J19 -> -8 | H28: =skjermbrom!K19 -> -9 | I28: =skjermbrom!L19 -> -12 | J28: =+IF(skjermbrom!M19="",I28,skjermbrom!M19) -> -13
A29: endelig absorpsjonskoeff: | B29: (fra skjermbilde) | C29: =+skjermbrom!D12 -> 0.25 | D29: =+$C29 -> 0.25 | E29: =+$C29 -> 0.25 | F29: 0.25 | G29: 0.25 | H29: 0.25 | I29: 0.25 | J29: 0.25
A30: avstand fra ventil: | B30: (fra skjermbilde) | C30: =+skjermbrom!D14 -> 1.9 | D30: =+$C30 -> 1.9 | E30: 1.9 | F30: 1.9 | G30: 1.9 | H30: 1.9 | I30: 1.9 | J30: 1.9
A31: Romvolum: | B31: (fra skjermbilde) | C31: =+skjermbrom!D7*skjermbrom!D8*skjermbrom!D9 -> 96 | D31: =+$C31 -> 96 | E31: 96 | F31: 96 | G31: 96 | H31: 96 | I31: 96 | J31: 96
A32: Beregner for store rom
A33: Overflateareal: | C33: =6*((C31)^(1/3))^2 -> 125.7955869 | D33: =+$C33 -> 125.7955869 | E33: =+$C33 -> 125.7955869 | F33: 125.7955869 | G33: 125.7955869 | H33: 125.7955869 | I33: 125.7955869 | J33: 125.7955869
A34: Romkonstant | B34: (formel 4.6 i Stampe = figur 4.6) | C34: =+(C33*C29)/(1-C29) -> 41.93186231 | D34: =+$C34 -> 41.93186231 | E34: 41.93186231 | F34: 41.93186231 | G34: 41.93186231 | H34: 41.93186231 | I34: 41.93186231 | J34: 41.93186231
A36: Lw-Lp: | B36: (formel 4.17 i Stampe = figur 4.7) | C36: =-10*LOG((G14/(4*PI()*C30^2))+4/C34) -> 8.554877643 | D36: =+$C36 -> 8.554877643 | E36: =+$C36 -> 8.554877643 | F36: 8.554877643 | G36: 8.554877643 | H36: 8.554877643 | I36: 8.554877643 | J36: 8.554877643
A38: Beregner for små dempede rom:
A40: Lw-Lp: | B40: (formel 4.19 i Stampe) | C40: =5*LOG(C31)+3*LOG(C27)+10*LOG(C30)-12 -> 6.096913823 | D40: 6.989622214 | E40: 7.892712201 | F40: 8.795802188 | G40: 9.698892175 | H40: 10.60198216 | I40: 11.50507215 | J40: 12.40816214
A42: Bølgenes frie veilengde: | B42: (formel 4.11 i Stampe) | C42: =4*C31/C33 -> 3.052571313 | D42: =+$C42 -> 3.052571313 | E42: =+$C42 -> 3.052571313 | F42: 3.052571313 | G42: 3.052571313 | H42: 3.052571313 | I42: 3.052571313 | J42: 3.052571313
A43: minste frekvens som kan beregnes etter formel 4.17: | C43: =10*340/C42 -> 1113.815093 | D43: =+$C43 -> 1113.815093 | E43: 1113.815093 | F43: 1113.815093 | G43: 1113.815093 | H43: 1113.815093 | I43: 1113.815093 | J43: 1113.815093
A45: Avstand til fjernfelt: | B45: (formel 4.18 i Stampe) | C45: =0.14*SQRT(G14*C34) -> 1.282079952 | D45: =+$C45 -> 1.282079952 | E45: =+$C45 -> 1.282079952 | F45: 1.282079952 | G45: 1.282079952 | H45: 1.282079952 | I45: 1.282079952 | J45: 1.282079952
A47: Resulterende Lw-Lp | C47: =IF(C30<C45,0,IF(AND(C31<60,C29>0.2),C40,C36)) -> 8.554877643 | D47: =IF(D30<D45,0,IF(AND(D31<60,D29>0.2),D40,D36)) -> 8.554877643 | E47: 8.554877643 | F47: 8.554877643 | G47: 8.554877643 | H47: 8.554877643 | I47: 8.554877643 | J47: 8.554877643
B48: små dempede rom = <60 m³ og am>0,2. I direktefeltet settes lik 0 | C48: =+IF(C47<0,0,C47) -> 8.554877643 | D48: =+IF(D47<0,0,D47) -> 8.554877643 | E48: 8.554877643 | F48: 8.554877643 | G48: 8.554877643 | H48: 8.554877643 | I48: 8.554877643 | J48: 8.554877643
A49: Høy usikkerhet: | C49: =+IF(AND(C27<C43,C48=C36),"x","") -> x | D49: x | E49: x | F49: x | G49: x
A50: Beregner Lw på grunnlag av oppgitt LwA og KO
A51: Lw fra én ventil | C51: =+C25+C28 -> 35 | D51: =+D25+D28 -> 34 | E51: 29 | F51: 27 | G51: 25 | H51: 24 | I51: 21 | J51: 20
A52: Lw fra oppgitt antall ventiler | C52: =+C51+10*LOG(C26) -> 35 | D52: 34 | E52: 29 | F52: 27 | G52: 25 | H52: 24 | I52: 21 | J52: 20
A54: A-filter | C54: -26.2 | D54: -16.1 | E54: -8.6 | F54: -3.2 | G54: 0 | H54: 1.2 | I54: 1 | J54: -1.1
A55: Beregner Lp i rom
A56: Lp | C56: =+C52-C48 -> 26.44512236 | D56: 25.44512236 | E56: 20.44512236 | F56: 18.44512236 | G56: 16.44512236 | H56: 15.44512236 | I56: 12.44512236 | J56: 11.44512236
A57: LpA | C57: =+C56+C54 -> 0.2451223575 | D57: =+D56+D54 -> 9.345122357 | E57: 11.84512236 | F57: 15.24512236 | G57: 16.44512236 | H57: 16.64512236 | I57: 13.44512236 | J57: 10.34512236
A58: A-veid lydtrykknivå (sum) | C58: =10*LOG(10^(0.1*(C56+C54))+10^(0.1*(D56+D54))+10^(0.1*(E56+E54))+10^(0.1*(F56+F54))+10^(0.1*(G56+G54))+10^(0.1*(H56+H54))+10^(0.1*(I56+I54))+10^(0.1*(J56+J54))) -> 22.5920637
A59: A-veid lydtrykknivå forårsaket av én ventil | C59: =+C58-10*LOG(C26) -> 22.5920637
A61: N-kurve | B61: =+skjermbrom!D17 -> 30 | C61: =$B61*0.8+35 -> 59 | D61: =$B61*0.864+22.1 -> 48.02 | E61: =$B61*0.936+11.9 -> 39.98 | F61: =$B61*0.9738+4.62335 -> 33.83735 | G61: =$B61 -> 30 | H61: =$B61-3 -> 27 | I61: =$B61*1.0197-5.97 -> 24.621 | J61: =$B61*1.0369-8.44 -> 22.667
A63: Resulterende A-veid romdemping | C63: =+C25-C59 -> 10.4079363

Sheet abskoeff
B4: Eksempler på abs.koeff. | E4: Ventilplasseringer
C5: αm
A6: 1 | B6: =+Tekst!A38 -> recording studio | C6: 0.4 | E6: 1 | F6: =+Tekst!A55 -> Free | G6: 1
A7: 2 | B7: =+Tekst!A39 -> music room | C7: 0.35 | E7: 2 | F7: =+Tekst!A56 -> Flush | G7: 2
A8: 3 | B8: =+Tekst!A40 -> hotel room | C8: 0.3 | E8: 3 | F8: =+Tekst!A57 -> In corner between two surfaces | G8: 4
A9: 4 | B9: =+Tekst!A41 -> library | C9: 0.25 | E9: 4 | F9: =+Tekst!A58 -> In corner between three surfaces | G9: 8
A10: 5 | B10: =+Tekst!A42 -> conference room | C10: 0.25
A11: 6 | B11: =+Tekst!A43 -> office | C11: 0.25
A12: 7 | B12: =+Tekst!A44 -> apartment | C12: 0.25
A13: 8 | B13: =+Tekst!A45 -> classroom | C13: 0.2 | F13: valgt plassering: | G13: =VLOOKUP(skjermbrom!E13,E6:G9,2) -> Flush
A14: 9 | B14: =+Tekst!A46 -> restaurant | C14: 0.2 | F14: Retningsfaktor: | G14: =VLOOKUP(skjermbrom!E13,E6:G9,3) -> 2
A15: 10 | B15: =+Tekst!A47 -> shop | C15: 0.15
A16: 11 | B16: =+Tekst!A48 -> hospital | C16: 0.15
A17: 12 | B17: =+Tekst!A49 -> small church | C17: 0.1
A18: 13 | B18: =+Tekst!A50 -> museum | C18: 0.1
A19: 14 | B19: =+Tekst!A51 -> factory | C19: 0.05
A20: 15 | B20: =+Tekst!A52 -> Indoor sports arena | C20: 0.05
A21: 16 | B21: =+Tekst!A53 -> cathedral | C21: 0.05
A22: 17 | B22: =+Tekst!A54 -> other | C22: 0.01
A23: valgt fra liste: | C23: =VLOOKUP(skjermbrom!E11,A6:C22,3) -> 0.25

Sheet skjermbkanal
B2: =+Tekst!A1 -> Auracoustics 1.21
I6: =+Tekst!$A$19 -> Click components to give characteristics
B7: =+Tekst!A109 -> Outdoor s. power level from outlet device: | S7: =+Tekst!A108 -> Outdoor s. power level from inlet device:
B10: =+beregningerkanal!L92 ->  | S10: =+beregningerkanal!L82 -> 
H19: =Tekst!$A$105 -> Sound power level from supply:
K21: =+beregningerkanal!$L$37 -> 
H23: =+Tekst!A106 -> Sound power level from exhaust:
K24: =+beregningerkanal!$L$67 -> 
H26: =+Tekst!A107 -> Total s. power. level. to room: | L26: =+beregningerkanal!L70 -> 
H27: =+Tekst!A113 -> Sound pressure level in room: | L27: =+beregningerkanal!L72 -> 
H28: =+CONCATENATE(Tekst!A114,ROUND(beregningerkanal!L70-beregningerkanal!L72,0),," dB(A) ",Tekst!A115) -> 

Sheet beregningerkanal (hidden)
B2: Beregninger av lyd og lyddemping fra aggregat til rom
B4: antall ventiler, tilluft | C4: =+vent!K7 -> 0 | F4: Beregnes | N4: KONTROLL
B5: antall ventiler, avtrekk | C5: =+vent!K13 -> 1 | F5: Hentes fra respektive inndatasider
B6: % l/s til rom, tilluft | C6: =+IF(ISNUMBER((vent!H7*vent!K7*100)/aggr!E12),(vent!H7*vent!K7*100)/aggr!E12,100) -> 100
B7: % l/s til rom, avtrekk | C7: =+IF(ISNUMBER((vent!H13*vent!K13*100)/aggr!E12),(vent!H13*vent!K13*100)/aggr!E12,100) -> 100
B9: LYDEFFEKTNIVÅ FRA TILLUFTSVENTILER | D9: 63 | E9: 125 | F9: 250 | G9: 500 | H9: 1k | I9: 2k | J9: 4k | K9: 8k | L9: A-sum | N9: Er data for vifte eller annet oppgitt: | Q9: =+IF(AND(L10<7,L15=0,L19=0,L25=0,L33=0),"nei","ja") -> nei
B10: Lydeffektnivå fra aggregat | D10: =+aggr!D8 -> 0 | E10: =+aggr!E8 -> 0 | F10: =+aggr!F8 -> 0 | G10: =+aggr!G8 -> 0 | H10: =+aggr!H8 -> 0 | I10: =+aggr!I8 -> 0 | J10: =+aggr!J8 -> 0 | K10: =+aggr!K8 -> 0 | L10: =10*LOG(10^(0.1*(D10-26.2))+10^(0.1*(E10-16.1))+10^(0.1*(F10-8.6))+10^(0.1*(G10-3.2))+10^(0.1*(H10))+10^(0.1*(I10+1.2))+10^(0.1*(J10+1))+10^(0.1*(K10-1.1))) -> 6.987131481
B11: "Demping", korreksjon for luftmengdeandel til rom | D11: =-10*LOG(100/$C$6) -> 0 | E11: =-10*LOG(100/$C$6) -> 0 | F11: 0 | G11: 0 | H11: 0 | I11: 0 | J11: 0 | K11: 0
B12: Demping i hovedlyddemper | D12: =-lkk!D8 -> 0 | E12: =-lkk!E8 -> 0 | F12: =-lkk!F8 -> 0 | G12: =-lkk!G8 -> 0 | H12: =-lkk!H8 -> 0 | I12: =-lkk!I8 -> 0 | J12: =-lkk!J8 -> 0 | K12: =-lkk!K8 -> 0
B13: Demping i ekstrakomponent | D13: =-xtra!D19 -> 0 | E13: =-xtra!E19 -> 0 | F13: =-xtra!F19 -> 0 | G13: =-xtra!G19 -> 0 | H13: =-xtra!H19 -> 0 | I13: =-xtra!I19 -> 0 | J13: =-xtra!J19 -> 0 | K13: =-xtra!K19 -> 0
B14: Lydeffektnivå etter demping i ekstrakomponent | D14: =+D10+D11+D12+D13 -> 0 | E14: =+E10+E11+E12+E13 -> 0 | F14: 0 | G14: 0 | H14: 0 | I14: 0 | J14: 0 | K14: 0
B15: Støygenerering i ekstrakomponent | L15: =+xtra!D7 -> 0 | N15: =+IF(AND(L15>0,SUM(D16:K16)=0),"KO må oppgis!","") -> 
B16: KO for ekstrakomponent | D16: =+xtra!D9 -> 0 | E16: =+xtra!E9 -> 0 | F16: =+xtra!F9 -> 0 | G16: =+xtra!G9 -> 0 | H16: =+xtra!H9 -> 0 | I16: =+xtra!I9 -> 0 | J16: =+xtra!J9 -> 0 | K16: =+xtra!K9 -> 0
B17: Lydeffektnivå fra ekstrakomponent - bidrag fra komponent | D17: =+D16+$L15 -> 0 | E17: =+E16+$L15 -> 0 | F17: 0 | G17: 0 | H17: 0 | I17: 0 | J17: 0 | K17: 0
B18: Lydeffektnivå etter ekstrakomponent | D18: =10*LOG(10^(0.1*D14)+10^(0.1*D17)) -> 3.010299957 | E18: =10*LOG(10^(0.1*E14)+10^(0.1*E17)) -> 3.010299957 | F18: 3.010299957 | G18: 3.010299957 | H18: 3.010299957 | I18: 3.010299957 | J18: 3.010299957 | K18: 3.010299957
B19: Lydeffektnivå fra spjeld 1 | L19: =+spj!D7 -> 0 | N19: =+IF(AND(L19>0,SUM(D20:K20)=0),"KO må oppgis!","") -> 
B20: KO for spjeld 1 | D20: =+spj!D10 -> 0 | E20: =+spj!E10 -> 0 | F20: =+spj!F10 -> 0 | G20: =+spj!G10 -> 0 | H20: =+spj!H10 -> 0 | I20: =+spj!I10 -> 0 | J20: =+spj!J10 -> 0 | K20: =+spj!K10 -> 0
B21: Lydeffektnivå fra spjeld 1 | D21: =+D20+$L19 -> 0 | E21: =+E20+$L19 -> 0 | F21: 0 | G21: 0 | H21: 0 | I21: 0 | J21: 0 | K21: 0
B22: Lydeffektnivå etter spjeld 1 | D22: =10*LOG(10^(0.1*D18)+10^(0.1*D21)) -> 4.771212547 | E22: 4.771212547 | F22: 4.771212547 | G22: 4.771212547 | H22: 4.771212547 | I22: 4.771212547 | J22: 4.771212547 | K22: 4.771212547
B23: Demping i grenlyddemper 1 | D23: =-lkr!D8 -> 0 | E23: =-lkr!E8 -> 0 | F23: =-lkr!F8 -> 0 | G23: =-lkr!G8 -> 0 | H23: =-lkr!H8 -> 0 | I23: =-lkr!I8 -> 0 | J23: =-lkr!J8 -> 0 | K23: =-lkr!K8 -> 0
B24: Lydeffektnivå etter grendemper 1 | D24: =+D22+D23 -> 4.771212547 | E24: =+E22+E23 -> 4.771212547 | F24: 4.771212547 | G24: 4.771212547 | H24: 4.771212547 | I24: 4.771212547 | J24: 4.771212547 | K24: 4.771212547
B25: Lydeffektnivå fra spjeld 2 | L25: =+spj!D8 -> 0 | N25: =+IF(AND(L25>0,SUM(D26:K26)=0),"KO må oppgis!","") -> 
B26: KO for spjeld 2 | D26: =+spj!D11 -> 0 | E26: =+spj!E11 -> 0 | F26: =+spj!F11 -> 0 | G26: =+spj!G11 -> 0 | H26: =+spj!H11 -> 0 | I26: =+spj!I11 -> 0 | J26: =+spj!J11 -> 0 | K26: =+spj!K11 -> 0
B27: Lydeffektnivå fra spjeld 2 | D27: =+D26+$L25 -> 0 | E27: 0 | F27: 0 | G27: 0 | H27: 0 | I27: 0 | J27: 0 | K27: 0
B28: Lydeffektnivå etter spjeld 2 | D28: =10*LOG(10^(0.1*D24)+10^(0.1*D27)) -> 6.020599913 | E28: 6.020599913 | F28: 6.020599913 | G28: 6.020599913 | H28: 6.020599913 | I28: 6.020599913 | J28: 6.020599913 | K28: 6.020599913
B29: Demping i grenlyddemper 2 | D29: =-lkr!D9 -> 0 | E29: =-lkr!E9 -> 0 | F29: =-lkr!F9 -> 0 | G29: =-lkr!G9 -> 0 | H29: =-lkr!H9 -> 0 | I29: =-lkr!I9 -> 0 | J29: =-lkr!J9 -> 0 | K29: =-lkr!K9 -> 0
B30: Lydeffektnivå etter grendemper 2 | D30: =+D28+D29 -> 6.020599913 | E30: 6.020599913 | F30: 6.020599913 | G30: 6.020599913 | H30: 6.020599913 | I30: 6.020599913 | J30: 6.020599913 | K30: 6.020599913
B31: Demping i ventil | D31: =-vent!D21 -> 0 | E31: =-vent!E21 -> 0 | F31: =-vent!F21 -> 0 | G31: =-vent!G21 -> 0 | H31: =-vent!H21 -> 0 | I31: =-vent!I21 -> 0 | J31: =-vent!J21 -> 0 | K31: =-vent!K21 -> 0
B32: Lydeffektnivå til rom - bidrag fra kanal | D32: =+D30+D31 -> 6.020599913 | E32: =+E30+E31 -> 6.020599913 | F32: 6.020599913 | G32: 6.020599913 | H32: 6.020599913 | I32: 6.020599913 | J32: 6.020599913 | K32: 6.020599913
B33: Støy generert i ventil | L33: =+vent!D7 -> 0 | N33: =+IF(AND(L33>0,SUM(D34:K34)=0),"KO må oppgis!","") -> 
B34: KO for ventil | D34: =+vent!D9 -> 0 | E34: =+vent!E9 -> 0 | F34: =+vent!F9 -> 0 | G34: =+vent!G9 -> 0 | H34: =+vent!H9 -> 0 | I34: =+vent!I9 -> 0 | J34: =+vent!J9 -> 0 | K34: =+vent!K9 -> 0
B35: Lydeffektnivå fra ventil | D35: =+D34+$L33 -> 0 | E35: =+E34+$L33 -> 0 | F35: 0 | G35: 0 | H35: 0 | I35: 0 | J35: 0 | K35: 0
B36: =+CONCATENATE("Lydeffektnivå til rom fra ",C4," tilluftsventiler - ventilstøy") -> Lydeffektnivå til rom fra 0 tilluftsventiler - ventilstøy | D36: =+D35+10*LOG($C$4) ->  | E36: =+E35+10*LOG($C$4) -> 
B37: Samlet lydeffektnivå til rom fra tilluftsventiler - ventilstøy + kanalstøy | D37: =10*LOG(10^(0.1*D32)+10^(0.1*D36)) ->  | E37: =10*LOG(10^(0.1*E32)+10^(0.1*E36)) ->  | L37: =+IF(Q9="nei","",10*LOG(10^(0.1*(D37-26.2))+10^(0.1*(E37-16.1))+10^(0.1*(F37-8.6))+10^(0.1*(G37-3.2))+10^(0.1*(H37))+10^(0.1*(I37+1.2))+10^(0.1*(J37+1))+10^(0.1*(K37-1.1)))) -> 
B39: LYDEFFEKTNIVÅ FRA AVTREKKSVENTILER | D39: 63 | E39: 125 | F39: 250 | G39: 500 | H39: 1k | I39: 2k | J39: 4k | K39: 8k | L39: A-sum | N39: Er data for vifte eller annet oppgitt: | Q39: =+IF(AND(L40<7,L45=0,L49=0,L55=0,L63=0),"nei","ja") -> nei
B40: Lydeffektnivå fra aggregat | D40: =+aggr!D9 -> 0 | E40: =+aggr!E9 -> 0 | F40: =+aggr!F9 -> 0 | G40: =+aggr!G9 -> 0 | H40: =+aggr!H9 -> 0 | I40: =+aggr!I9 -> 0 | J40: =+aggr!J9 -> 0 | K40: =+aggr!K9 -> 0 | L40: =10*LOG(10^(0.1*(D40-26.2))+10^(0.1*(E40-16.1))+10^(0.1*(F40-8.6))+10^(0.1*(G40-3.2))+10^(0.1*(H40))+10^(0.1*(I40+1.2))+10^(0.1*(J40+1))+10^(0.1*(K40-1.1))) -> 6.987131481
B41: "Demping", korreksjon for luftmengdeandel til rom | D41: =-10*LOG(100/$C$7) -> 0 | E41: =-10*LOG(100/$C$7) -> 0 | F41: 0 | G41: 0 | H41: 0 | I41: 0 | J41: 0 | K41: 0
B42: Demping i hovedlyddemper | D42: =-lkk!D9 -> 0 | E42: =-lkk!E9 -> 0 | F42: =-lkk!F9 -> 0 | G42: =-lkk!G9 -> 0 | H42: =-lkk!H9 -> 0 | I42: =-lkk!I9 -> 0 | J42: =-lkk!J9 -> 0 | K42: =-lkk!K9 -> 0
B43: Demping i ekstrakomponent | D43: =-xtra!D20 -> 0 | E43: =-xtra!E20 -> 0 | F43: =-xtra!F20 -> 0 | G43: =-xtra!G20 -> 0 | H43: =-xtra!H20 -> 0 | I43: =-xtra!I20 -> 0 | J43: =-xtra!J20 -> 0 | K43: =-xtra!K20 -> 0
B44: Lydeffektnivå etter demping i ekstrakomponent | D44: =+D40+D41+D42+D43 -> 0 | E44: =+E40+E41+E42+E43 -> 0 | F44: 0 | G44: 0 | H44: 0 | I44: 0 | J44: 0 | K44: 0
B45: Støygenerering i ekstrakomponent | L45: =+xtra!D11 -> 0 | N45: =+IF(AND(L45>0,SUM(D46:K46)=0),"KO må oppgis!","") -> 
B46: KO for ekstrakomponent | D46: =+xtra!D13 -> 0 | E46: =+xtra!E13 -> 0 | F46: =+xtra!F13 -> 0 | G46: =+xtra!G13 -> 0 | H46: =+xtra!H13 -> 0 | I46: =+xtra!I13 -> 0 | J46: =+xtra!J13 -> 0 | K46: =+xtra!K13 -> 0
B47: Lydeffektnivå fra ekstrakomponent - bidrag fra komponent | D47: =+D46+$L45 -> 0 | E47: =+E46+$L45 -> 0 | F47: 0 | G47: 0 | H47: 0 | I47: 0 | J47: 0 | K47: 0
B48: Lydeffektnivå etter ekstrakomponent | D48: =10*LOG(10^(0.1*D44)+10^(0.1*D47)) -> 3.010299957 | E48: =10*LOG(10^(0.1*E44)+10^(0.1*E47)) -> 3.010299957 | F48: 3.010299957 | G48: 3.010299957 | H48: 3.010299957 | I48: 3.010299957 | J48: 3.010299957 | K48: 3.010299957
B49: Lydeffektnivå fra spjeld 1 | L49: =+spj!D13 -> 0 | N49: =+IF(AND(L49>0,SUM(D50:K50)=0),"KO må oppgis!","") -> 
B50: KO for spjeld 1 | D50: =+spj!D16 -> 0 | E50: =+spj!E16 -> 0 | F50: =+spj!F16 -> 0 | G50: =+spj!G16 -> 0 | H50: =+spj!H16 -> 0 | I50: =+spj!I16 -> 0 | J50: =+spj!J16 -> 0 | K50: =+spj!K16 -> 0
B51: Lydeffektnivå fra spjeld 1 | D51: =+D50+$L49 -> 0 | E51: =+E50+$L49 -> 0 | F51: 0 | G51: 0 | H51: 0 | I51: 0 | J51: 0 | K51: 0
B52: Lydeffektnivå etter spjeld 1 | D52: =10*LOG(10^(0.1*D48)+10^(0.1*D51)) -> 4.771212547 | E52: 4.771212547 | F52: 4.771212547 | G52: 4.771212547 | H52: 4.771212547 | I52: 4.771212547 | J52: 4.771212547 | K52: 4.771212547
B53: Demping i grenlyddemper 1 | D53: =-lkr!D10 -> 0 | E53: =-lkr!E10 -> 0 | F53: =-lkr!F10 -> 0 | G53: =-lkr!G10 -> 0 | H53: =-lkr!H10 -> 0 | I53: =-lkr!I10 -> 0 | J53: =-lkr!J10 -> 0 | K53: =-lkr!K10 -> 0
B54: Lydeffektnivå etter grendemper 1 | D54: =+D52+D53 -> 4.771212547 | E54: =+E52+E53 -> 4.771212547 | F54: 4.771212547 | G54: 4.771212547 | H54: 4.771212547 | I54: 4.771212547 | J54: 4.771212547 | K54: 4.771212547
B55: Lydeffektnivå fra spjeld 2 | L55: =+spj!D14 -> 0 | N55: =+IF(AND(L55>0,SUM(D56:K56)=0),"KO må oppgis!","") -> 
B56: KO for spjeld 2 | D56: =+spj!D17 -> 0 | E56: =+spj!E17 -> 0 | F56: =+spj!F17 -> 0 | G56: =+spj!G17 -> 0 | H56: =+spj!H17 -> 0 | I56: =+spj!I17 -> 0 | J56: =+spj!J17 -> 0 | K56: =+spj!K17 -> 0
B57: Lydeffektnivå fra spjeld 2 | D57: =+D56+$L55 -> 0 | E57: 0 | F57: 0 | G57: 0 | H57: 0 | I57: 0 | J57: 0 | K57: 0
B58: Lydeffektnivå etter spjeld 2 | D58: =10*LOG(10^(0.1*D54)+10^(0.1*D57)) -> 6.020599913 | E58: 6.020599913 | F58: 6.020599913 | G58: 6.020599913 | H58: 6.020599913 | I58: 6.020599913 | J58: 6.020599913 | K58: 6.020599913
B59: Demping i grenlyddemper 2 | D59: =-lkr!D11 -> 0 | E59: =-lkr!E11 -> 0 | F59: =-lkr!F11 -> 0 | G59: =-lkr!G11 -> 0 | H59: =-lkr!H11 -> 0 | I59: =-lkr!I11 -> 0 | J59: =-lkr!J11 -> 0 | K59: =-lkr!K11 -> 0
B60: Lydeffektnivå etter grendemper 2 | D60: =+D58+D59 -> 6.020599913 | E60: 6.020599913 | F60: 6.020599913 | G60: 6.020599913 | H60: 6.020599913 | I60: 6.020599913 | J60: 6.020599913 | K60: 6.020599913
B61: Demping i ventil | D61: =-vent!D22 -> 0 | E61: =-vent!E22 -> 0 | F61: =-vent!F22 -> 0 | G61: =-vent!G22 -> 0 | H61: =-vent!H22 -> 0 | I61: =-vent!I22 -> 0 | J61: =-vent!J22 -> 0 | K61: =-vent!K22 -> 0
B62: Lydeffektnivå til rom - bidrag fra kanal | D62: =+D60+D61 -> 6.020599913 | E62: =+E60+E61 -> 6.020599913 | F62: 6.020599913 | G62: 6.020599913 | H62: 6.020599913 | I62: 6.020599913 | J62: 6.020599913 | K62: 6.020599913
B63: Støy generert i ventil | L63: =+vent!D13 -> 0 | N63: =+IF(AND(L63>0,SUM(D64:K64)=0),"KO må oppgis!","") -> 
B64: KO for ventil | D64: =+vent!D15 -> 0 | E64: =+vent!E15 -> 0 | F64: =+vent!F15 -> 0 | G64: =+vent!G15 -> 0 | H64: =+vent!H15 -> 0 | I64: =+vent!I15 -> 0 | J64: =+vent!J15 -> 0 | K64: =+vent!K15 -> 0
B65: Lydeffektnivå fra ventil | D65: =+D64+$L63 -> 0 | E65: =+E64+$L63 -> 0 | F65: 0 | G65: 0 | H65: 0 | I65: 0 | J65: 0 | K65: 0
B66: =+CONCATENATE("Lydeffektnivå til rom fra ",C5," avtrekksventiler - ventilstøy") -> Lydeffektnivå til rom fra 1 avtrekksventiler - ventilstøy | D66: =+D65+10*LOG($C$5) -> 0 | E66: =+E65+10*LOG($C$5) -> 0 | F66: 0 | G66: 0 | H66: 0 | I66: 0 | J66: 0 | K66: 0
B67: Samlet lydeffektnivå til rom fra avtrekksventiler - ventilstøy + kanalstøy | D67: =10*LOG(10^(0.1*D62)+10^(0.1*D66)) -> 6.989700043 | E67: =10*LOG(10^(0.1*E62)+10^(0.1*E66)) -> 6.989700043 | F67: 6.989700043 | G67: 6.989700043 | H67: 6.989700043 | I67: 6.989700043 | J67: 6.989700043 | K67: 6.989700043 | L67: =+IF(Q39="nei","",10*LOG(10^(0.1*(D67-26.2))+10^(0.1*(E67-16.1))+10^(0.1*(F67-8.6))+10^(0.1*(G67-3.2))+10^(0.1*(H67))+10^(0.1*(I67+1.2))+10^(0.1*(J67+1))+10^(0.1*(K67-1.1)))) -> 
B69: LYDTRYKKNIVÅ I ROM | D69: 63 | E69: 125 | F69: 250 | G69: 500 | H69: 1k | I69: 2k | J69: 4k | K69: 8k | L69: A-sum
B70: Summert lydeffektnivå til rom fra tilluft og avtrekk | D70: =10*LOG(10^(0.1*D37)+10^(0.1*D67)) ->  | E70: =10*LOG(10^(0.1*E37)+10^(0.1*E67)) ->  | L70: =IF(Q70="nei","",10*LOG(10^(0.1*(D70-26.2))+10^(0.1*(E70-16.1))+10^(0.1*(F70-8.6))+10^(0.1*(G70-3.2))+10^(0.1*(H70))+10^(0.1*(I70+1.2))+10^(0.1*(J70+1))+10^(0.1*(K70-1.1)))) ->  | N70: Er data for både avtrekk og tillluft beregnet? | Q70: =+IF(AND(Q39="ja",Q9="ja"),"ja","nei") -> nei
B71: Romdemping | D71: =vent!D11 -> 4 | E71: =vent!E11 -> 4 | F71: =vent!F11 -> 4 | G71: =vent!G11 -> 4 | H71: =vent!H11 -> 4 | I71: =vent!I11 -> 4 | J71: =vent!J11 -> 4 | K71: =vent!K11 -> 4
B72: Lydtrykknivå i rom | D72: =+D70-D71 ->  | E72: =+E70-E71 ->  | L72: =IF(Q70="nei","",10*LOG(10^(0.1*(D72-26.2))+10^(0.1*(E72-16.1))+10^(0.1*(F72-8.6))+10^(0.1*(G72-3.2))+10^(0.1*(H72))+10^(0.1*(I72+1.2))+10^(0.1*(J72+1))+10^(0.1*(K72-1.1)))) -> 
B74: LYDEFFEKTNIVÅ FRA INNTAKSENHET | D74: 63 | E74: 125 | F74: 250 | G74: 500 | H74: 1k | I74: 2k | J74: 4k | K74: 8k | L74: A-sum | N74: Er data for vifte oppgitt: | Q74: =+IF(L75<7,"nei","ja") -> nei
B75: Lydeffektnivå fra aggregat | D75: =+aggr!D10 -> 0 | E75: =+aggr!E10 -> 0 | F75: =+aggr!F10 -> 0 | G75: =+aggr!G10 -> 0 | H75: =+aggr!H10 -> 0 | I75: =+aggr!I10 -> 0 | J75: =+aggr!J10 -> 0 | K75: =+aggr!K10 -> 0 | L75: =10*LOG(10^(0.1*(D75-26.2))+10^(0.1*(E75-16.1))+10^(0.1*(F75-8.6))+10^(0.1*(G75-3.2))+10^(0.1*(H75))+10^(0.1*(I75+1.2))+10^(0.1*(J75+1))+10^(0.1*(K75-1.1))) -> 6.987131481
B76: Demping i hovedlyddemper | D76: =-lkk!D10 -> 0 | E76: =-lkk!E10 -> 0 | F76: =-lkk!F10 -> 0 | G76: =-lkk!G10 -> 0 | H76: =-lkk!H10 -> 0 | I76: =-lkk!I10 -> 0 | J76: =-lkk!J10 -> 0 | K76: =-lkk!K10 -> 0
B77: Demping i inntaksenhet | D77: =-inntav!D19 -> 0 | E77: =-inntav!E19 -> 0 | F77: =-inntav!F19 -> 0 | G77: =-inntav!G19 -> 0 | H77: =-inntav!H19 -> 0 | I77: =-inntav!I19 -> 0 | J77: =-inntav!J19 -> 0 | K77: =-inntav!K19 -> 0
B78: Lydeffektnivå til ute - bidrag fra kanal | D78: =+D75+D76+D77 -> 0 | E78: =+E75+E76+E77 -> 0 | F78: 0 | G78: 0 | H78: 0 | I78: 0 | J78: 0 | K78: 0
B79: Støy generert i inntaksenhet | L79: =+inntav!D7 -> 0
B80: KO for inntaksenhet | D80: =+inntav!D9 -> 0 | E80: =+inntav!E9 -> 0 | F80: =+inntav!F9 -> 0 | G80: =+inntav!G9 -> 0 | H80: =+inntav!H9 -> 0 | I80: =+inntav!I9 -> 0 | J80: =+inntav!J9 -> 0 | K80: =+inntav!K9 -> 0
B81: Lydeffektnivå fra inntaksenhet | D81: =+D80+$L79 -> 0 | E81: =+E80+$L79 -> 0 | F81: 0 | G81: 0 | H81: 0 | I81: 0 | J81: 0 | K81: 0
B82: Samlet lydeffektnivå til ute fra inntaksenhet + kanalstøy | D82: =10*LOG(10^(0.1*D78)+10^(0.1*D81)) -> 3.010299957 | E82: =10*LOG(10^(0.1*E78)+10^(0.1*E81)) -> 3.010299957 | F82: 3.010299957 | G82: 3.010299957 | H82: 3.010299957 | I82: 3.010299957 | J82: 3.010299957 | K82: 3.010299957 | L82: =+IF(Q74="nei","",10*LOG(10^(0.1*(D82-26.2))+10^(0.1*(E82-16.1))+10^(0.1*(F82-8.6))+10^(0.1*(G82-3.2))+10^(0.1*(H82))+10^(0.1*(I82+1.2))+10^(0.1*(J82+1))+10^(0.1*(K82-1.1)))) -> 
B84: LYDEFFEKTNIVÅ FRA AVKASTENHET | D84: 63 | E84: 125 | F84: 250 | G84: 500 | H84: 1k | I84: 2k | J84: 4k | K84: 8k | L84: A-sum | N84: Er data for vifte oppgitt: | Q84: =+IF(L85<7,"nei","ja") -> nei
B85: Lydeffektnivå fra aggregat | D85: =+aggr!D11 -> 0 | E85: =+aggr!E11 -> 0 | F85: =+aggr!F11 -> 0 | G85: =+aggr!G11 -> 0 | H85: =+aggr!H11 -> 0 | I85: =+aggr!I11 -> 0 | J85: =+aggr!J11 -> 0 | K85: =+aggr!K11 -> 0 | L85: =10*LOG(10^(0.1*(D85-26.2))+10^(0.1*(E85-16.1))+10^(0.1*(F85-8.6))+10^(0.1*(G85-3.2))+10^(0.1*(H85))+10^(0.1*(I85+1.2))+10^(0.1*(J85+1))+10^(0.1*(K85-1.1))) -> 6.987131481
B86: Demping i hovedlyddemper | D86: =-lkk!D11 -> 0 | E86: =-lkk!E11 -> 0 | F86: =-lkk!F11 -> 0 | G86: =-lkk!G11 -> 0 | H86: =-lkk!H11 -> 0 | I86: =-lkk!I11 -> 0 | J86: =-lkk!J11 -> 0 | K86: =-lkk!K11 -> 0
B87: Demping i avkastenhet | D87: =-inntav!D20 -> 0 | E87: =-inntav!E20 -> 0 | F87: =-inntav!F20 -> 0 | G87: =-inntav!G20 -> 0 | H87: =-inntav!H20 -> 0 | I87: =-inntav!I20 -> 0 | J87: =-inntav!J20 -> 0 | K87: =-inntav!K20 -> 0
B88: Lydeffektnivå til ute - bidrag fra kanal | D88: =+D85+D86+D87 -> 0 | E88: =+E85+E86+E87 -> 0 | F88: 0 | G88: 0 | H88: 0 | I88: 0 | J88: 0 | K88: 0
B89: Støy generert i avkastenhet | L89: =+inntav!D11 -> 0
B90: KO for avkastenhet | D90: =+inntav!D13 -> 0 | E90: =+inntav!E13 -> 0 | F90: =+inntav!F13 -> 0 | G90: =+inntav!G13 -> 0 | H90: =+inntav!H13 -> 0 | I90: =+inntav!I13 -> 0 | J90: =+inntav!J13 -> 0 | K90: =+inntav!K13 -> 0
B91: Lydeffektnivå fra avkastenhet | D91: =+D90+$L89 -> 0 | E91: =+E90+$L89 -> 0 | F91: 0 | G91: 0 | H91: 0 | I91: 0 | J91: 0 | K91: 0
B92: Samlet lydeffektnivå til ute fra avkastenhet + kanalstøy | D92: =10*LOG(10^(0.1*D88)+10^(0.1*D91)) -> 3.010299957 | E92: =10*LOG(10^(0.1*E88)+10^(0.1*E91)) -> 3.010299957 | F92: 3.010299957 | G92: 3.010299957 | H92: 3.010299957 | I92: 3.010299957 | J92: 3.010299957 | K92: 3.010299957 | L92: =+IF(Q84="nei","",10*LOG(10^(0.1*(D92-26.2))+10^(0.1*(E92-16.1))+10^(0.1*(F92-8.6))+10^(0.1*(G92-3.2))+10^(0.1*(H92))+10^(0.1*(I92+1.2))+10^(0.1*(J92+1))+10^(0.1*(K92-1.1)))) -> 

Sheet utskrift
B2: =+Tekst!A1 -> Auracoustics 1.21
B3: =+Tekst!A131 -> Calculation og noise and reduction from AHU to room
B5: =+Tekst!A133 -> Project | C5: Free text | D5: Int
B8: =+Tekst!A136 -> SPL from supply ATDs | D8: 63 | E8: 125 | F8: 250 | G8: 500 | H8: 1k | I8: 2k | J8: 4k | K8: 8k | L8: A-sum
B9: =+Tekst!A137 -> SPL from AHU | D9: =+beregningerkanal!D10 -> 0 | E9: =+beregningerkanal!E10 -> 0 | F9: =+beregningerkanal!F10 -> 0 | G9: =+beregningerkanal!G10 -> 0 | H9: =+beregningerkanal!H10 -> 0 | I9: =+beregningerkanal!I10 -> 0 | J9: =+beregningerkanal!J10 -> 0 | K9: =+beregningerkanal!K10 -> 0 | L9: =+beregningerkanal!L10 -> 6.987131481
B10: =+Tekst!A138 -> "Power-split" based on air flow rates | D10: =+beregningerkanal!D11 -> 0 | E10: =+beregningerkanal!E11 -> 0 | F10: =+beregningerkanal!F11 -> 0 | G10: =+beregningerkanal!G11 -> 0 | H10: =+beregningerkanal!H11 -> 0 | I10: =+beregningerkanal!I11 -> 0 | J10: =+beregningerkanal!J11 -> 0 | K10: =+beregningerkanal!K11 -> 0
B11: =+Tekst!A139 -> Insertion loss main ducted silencer | D11: =+beregningerkanal!D12 -> 0 | E11: =+beregningerkanal!E12 -> 0 | F11: =+beregningerkanal!F12 -> 0 | G11: =+beregningerkanal!G12 -> 0 | H11: =+beregningerkanal!H12 -> 0 | I11: =+beregningerkanal!I12 -> 0 | J11: =+beregningerkanal!J12 -> 0 | K11: =+beregningerkanal!K12 -> 0
B12: =+Tekst!A140 -> Insertion loss component | D12: =+beregningerkanal!D13 -> 0 | E12: =+beregningerkanal!E13 -> 0 | F12: =+beregningerkanal!F13 -> 0 | G12: =+beregningerkanal!G13 -> 0 | H12: =+beregningerkanal!H13 -> 0 | I12: =+beregningerkanal!I13 -> 0 | J12: =+beregningerkanal!J13 -> 0 | K12: =+beregningerkanal!K13 -> 0
B13: =+Tekst!A141 -> SPL after component ex gen. noise | D13: =+beregningerkanal!D14 -> 0 | E13: =+beregningerkanal!E14 -> 0 | F13: =+beregningerkanal!F14 -> 0 | G13: =+beregningerkanal!G14 -> 0 | H13: =+beregningerkanal!H14 -> 0 | I13: =+beregningerkanal!I14 -> 0 | J13: =+beregningerkanal!J14 -> 0 | K13: =+beregningerkanal!K14 -> 0
B14: =+Tekst!A142 -> Noise generated in component | L14: =+beregningerkanal!L15 -> 0
B15: =+Tekst!A143 -> KO component | D15: =+beregningerkanal!D16 -> 0 | E15: =+beregningerkanal!E16 -> 0 | F15: =+beregningerkanal!F16 -> 0 | G15: =+beregningerkanal!G16 -> 0 | H15: =+beregningerkanal!H16 -> 0 | I15: =+beregningerkanal!I16 -> 0 | J15: =+beregningerkanal!J16 -> 0 | K15: =+beregningerkanal!K16 -> 0
B16: =+Tekst!A144 -> SPL from component | D16: =+beregningerkanal!D17 -> 0 | E16: =+beregningerkanal!E17 -> 0 | F16: =+beregningerkanal!F17 -> 0 | G16: =+beregningerkanal!G17 -> 0 | H16: =+beregningerkanal!H17 -> 0 | I16: =+beregningerkanal!I17 -> 0 | J16: =+beregningerkanal!J17 -> 0 | K16: =+beregningerkanal!K17 -> 0
B17: =+Tekst!A145 -> SPL after component | D17: =+beregningerkanal!D18 -> 3.010299957 | E17: =+beregningerkanal!E18 -> 3.010299957 | F17: =+beregningerkanal!F18 -> 3.010299957 | G17: =+beregningerkanal!G18 -> 3.010299957 | H17: =+beregningerkanal!H18 -> 3.010299957 | I17: =+beregningerkanal!I18 -> 3.010299957 | J17: =+beregningerkanal!J18 -> 3.010299957 | K17: =+beregningerkanal!K18 -> 3.010299957
B18: =+Tekst!A146 -> SPL from damper 1 | L18: =+beregningerkanal!L19 -> 0
B19: =+Tekst!A147 -> KO damper 1 | D19: =+beregningerkanal!D20 -> 0 | E19: =+beregningerkanal!E20 -> 0 | F19: =+beregningerkanal!F20 -> 0 | G19: =+beregningerkanal!G20 -> 0 | H19: =+beregningerkanal!H20 -> 0 | I19: =+beregningerkanal!I20 -> 0 | J19: =+beregningerkanal!J20 -> 0 | K19: =+beregningerkanal!K20 -> 0
B20: =+Tekst!A148 -> SPL from damper 1 | D20: =+beregningerkanal!D21 -> 0 | E20: =+beregningerkanal!E21 -> 0 | F20: =+beregningerkanal!F21 -> 0 | G20: =+beregningerkanal!G21 -> 0 | H20: =+beregningerkanal!H21 -> 0 | I20: =+beregningerkanal!I21 -> 0 | J20: =+beregningerkanal!J21 -> 0 | K20: =+beregningerkanal!K21 -> 0
B21: =+Tekst!A149 -> SPL after damper 1 | D21: =+beregningerkanal!D22 -> 4.771212547 | E21: =+beregningerkanal!E22 -> 4.771212547 | F21: =+beregningerkanal!F22 -> 4.771212547 | G21: =+beregningerkanal!G22 -> 4.771212547 | H21: =+beregningerkanal!H22 -> 4.771212547 | I21: =+beregningerkanal!I22 -> 4.771212547 | J21: =+beregningerkanal!J22 -> 4.771212547 | K21: =+beregningerkanal!K22 -> 4.771212547
B22: =+Tekst!A150 -> Insertion loss branch silencer 1 | D22: =+beregningerkanal!D23 -> 0 | E22: =+beregningerkanal!E23 -> 0 | F22: =+beregningerkanal!F23 -> 0 | G22: =+beregningerkanal!G23 -> 0 | H22: =+beregningerkanal!H23 -> 0 | I22: =+beregningerkanal!I23 -> 0 | J22: =+beregningerkanal!J23 -> 0 | K22: =+beregningerkanal!K23 -> 0
B23: =+Tekst!A151 -> SPL after branch silencer 1 | D23: =+beregningerkanal!D24 -> 4.771212547 | E23: =+beregningerkanal!E24 -> 4.771212547 | F23: =+beregningerkanal!F24 -> 4.771212547 | G23: =+beregningerkanal!G24 -> 4.771212547 | H23: =+beregningerkanal!H24 -> 4.771212547 | I23: =+beregningerkanal!I24 -> 4.771212547 | J23: =+beregningerkanal!J24 -> 4.771212547 | K23: =+beregningerkanal!K24 -> 4.771212547
B24: =+Tekst!A152 -> SPL from damper 2 | L24: =+beregningerkanal!L25 -> 0
B25: =+Tekst!A153 -> KO damper 2 | D25: =+beregningerkanal!D26 -> 0 | E25: =+beregningerkanal!E26 -> 0 | F25: =+beregningerkanal!F26 -> 0 | G25: =+beregningerkanal!G26 -> 0 | H25: =+beregningerkanal!H26 -> 0 | I25: =+beregningerkanal!I26 -> 0 | J25: =+beregningerkanal!J26 -> 0 | K25: =+beregningerkanal!K26 -> 0
B26: =+Tekst!A154 -> SPL from damper 2 | D26: =+beregningerkanal!D27 -> 0 | E26: =+beregningerkanal!E27 -> 0 | F26: =+beregningerkanal!F27 -> 0 | G26: =+beregningerkanal!G27 -> 0 | H26: =+beregningerkanal!H27 -> 0 | I26: =+beregningerkanal!I27 -> 0 | J26: =+beregningerkanal!J27 -> 0 | K26: =+beregningerkanal!K27 -> 0
B27: =+Tekst!A155 -> SPL after damper 2 | D27: =+beregningerkanal!D28 -> 6.020599913 | E27: =+beregningerkanal!E28 -> 6.020599913 | F27: =+beregningerkanal!F28 -> 6.020599913 | G27: =+beregningerkanal!G28 -> 6.020599913 | H27: =+beregningerkanal!H28 -> 6.020599913 | I27: =+beregningerkanal!I28 -> 6.020599913 | J27: =+beregningerkanal!J28 -> 6.020599913 | K27: =+beregningerkanal!K28 -> 6.020599913
B28: =+Tekst!A156 -> Insertion loss branch silencer 2 | D28: =+beregningerkanal!D29 -> 0 | E28: =+beregningerkanal!E29 -> 0 | F28: =+beregningerkanal!F29 -> 0 | G28: =+beregningerkanal!G29 -> 0 | H28: =+beregningerkanal!H29 -> 0 | I28: =+beregningerkanal!I29 -> 0 | J28: =+beregningerkanal!J29 -> 0 | K28: =+beregningerkanal!K29 -> 0
B29: =+Tekst!A157 -> SPL after branch silencer 2 | D29: =+beregningerkanal!D30 -> 6.020599913 | E29: =+beregningerkanal!E30 -> 6.020599913 | F29: =+beregningerkanal!F30 -> 6.020599913 | G29: =+beregningerkanal!G30 -> 6.020599913 | H29: =+beregningerkanal!H30 -> 6.020599913 | I29: =+beregningerkanal!I30 -> 6.020599913 | J29: =+beregningerkanal!J30 -> 6.020599913 | K29: =+beregningerkanal!K30 -> 6.020599913
B30: =+Tekst!A158 -> ATD transmission loss | D30: =+beregningerkanal!D31 -> 0 | E30: =+beregningerkanal!E31 -> 0 | F30: =+beregningerkanal!F31 -> 0 | G30: =+beregningerkanal!G31 -> 0 | H30: =+beregningerkanal!H31 -> 0 | I30: =+beregningerkanal!I31 -> 0 | J30: =+beregningerkanal!J31 -> 0 | K30: =+beregningerkanal!K31 -> 0
B31: =+Tekst!A159 -> Sound power level to room from duct | D31: =+beregningerkanal!D32 -> 6.020599913 | E31: =+beregningerkanal!E32 -> 6.020599913 | F31: =+beregningerkanal!F32 -> 6.020599913 | G31: =+beregningerkanal!G32 -> 6.020599913 | H31: =+beregningerkanal!H32 -> 6.020599913 | I31: =+beregningerkanal!I32 -> 6.020599913 | J31: =+beregningerkanal!J32 -> 6.020599913 | K31: =+beregningerkanal!K32 -> 6.020599913
B32: =+Tekst!A160 -> ATD generated noise | L32: =+beregningerkanal!L33 -> 0
B33: =+Tekst!A161 -> KO ATD | D33: =+beregningerkanal!D34 -> 0 | E33: =+beregningerkanal!E34 -> 0 | F33: =+beregningerkanal!F34 -> 0 | G33: =+beregningerkanal!G34 -> 0 | H33: =+beregningerkanal!H34 -> 0 | I33: =+beregningerkanal!I34 -> 0 | J33: =+beregningerkanal!J34 -> 0 | K33: =+beregningerkanal!K34 -> 0
B34: =+Tekst!A162 -> Sound power level from ATD | D34: =+beregningerkanal!D35 -> 0 | E34: =+beregningerkanal!E35 -> 0 | F34: =+beregningerkanal!F35 -> 0 | G34: =+beregningerkanal!G35 -> 0 | H34: =+beregningerkanal!H35 -> 0 | I34: =+beregningerkanal!I35 -> 0 | J34: =+beregningerkanal!J35 -> 0 | K34: =+beregningerkanal!K35 -> 0
B35: =+CONCATENATE("SPL to room from ",C5," supply ATDs - gen.noise") -> SPL to room from Free text supply ATDs - gen.noise | D35: =+beregningerkanal!D36 ->  | E35: =+beregningerkanal!E36 ->  | F35: =+beregningerkanal!F36 ->  | G35: =+beregningerkanal!G36 ->  | H35: =+beregningerkanal!H36 ->  | I35: =+beregningerkanal!I36 ->  | J35: =+beregningerkanal!J36 ->  | K35: =+beregningerkanal!K36 -> 
B36: =+Tekst!A164 -> Total SPL to room from supply ATDs - gen.noise + ducted noise | D36: =+beregningerkanal!D37 ->  | E36: =+beregningerkanal!E37 ->  | F36: =+beregningerkanal!F37 ->  | G36: =+beregningerkanal!G37 ->  | H36: =+beregningerkanal!H37 ->  | I36: =+beregningerkanal!I37 ->  | J36: =+beregningerkanal!J37 ->  | K36: =+beregningerkanal!K37 ->  | L36: =+beregningerkanal!L37 -> 
B40: =+B5 -> Project | C40: =+C5 -> Free text | D40: Int
B41: =+B6 ->  | C41: =+C6 ->  | D41: =+D6 -> 
B43: =+Tekst!A166 -> SPL from exhaust ATDs | D43: 63 | E43: 125 | F43: 250 | G43: 500 | H43: 1k | I43: 2k | J43: 4k | K43: 8k | L43: A-sum
B44: =+Tekst!A167 -> SPL from AHU | D44: =+beregningerkanal!D40 -> 0 | E44: =+beregningerkanal!E40 -> 0 | F44: =+beregningerkanal!F40 -> 0 | G44: =+beregningerkanal!G40 -> 0 | H44: =+beregningerkanal!H40 -> 0 | I44: =+beregningerkanal!I40 -> 0 | J44: =+beregningerkanal!J40 -> 0 | K44: =+beregningerkanal!K40 -> 0 | L44: =+beregningerkanal!L40 -> 6.987131481
B45: =+Tekst!A168 -> "Power-split" based on air flow rates | D45: =+beregningerkanal!D41 -> 0 | E45: =+beregningerkanal!E41 -> 0 | F45: =+beregningerkanal!F41 -> 0 | G45: =+beregningerkanal!G41 -> 0 | H45: =+beregningerkanal!H41 -> 0 | I45: =+beregningerkanal!I41 -> 0 | J45: =+beregningerkanal!J41 -> 0 | K45: =+beregningerkanal!K41 -> 0
B46: =+Tekst!A169 -> Insertion loss main ducted silencer | D46: =+beregningerkanal!D42 -> 0 | E46: =+beregningerkanal!E42 -> 0 | F46: =+beregningerkanal!F42 -> 0 | G46: =+beregningerkanal!G42 -> 0 | H46: =+beregningerkanal!H42 -> 0 | I46: =+beregningerkanal!I42 -> 0 | J46: =+beregningerkanal!J42 -> 0 | K46: =+beregningerkanal!K42 -> 0
B47: =+Tekst!A170 -> Insertion loss component | D47: =+beregningerkanal!D43 -> 0 | E47: =+beregningerkanal!E43 -> 0 | F47: =+beregningerkanal!F43 -> 0 | G47: =+beregningerkanal!G43 -> 0 | H47: =+beregningerkanal!H43 -> 0 | I47: =+beregningerkanal!I43 -> 0 | J47: =+beregningerkanal!J43 -> 0 | K47: =+beregningerkanal!K43 -> 0
B48: =+Tekst!A171 -> SPL after component ex gen. noise | D48: =+beregningerkanal!D44 -> 0 | E48: =+beregningerkanal!E44 -> 0 | F48: =+beregningerkanal!F44 -> 0 | G48: =+beregningerkanal!G44 -> 0 | H48: =+beregningerkanal!H44 -> 0 | I48: =+beregningerkanal!I44 -> 0 | J48: =+beregningerkanal!J44 -> 0 | K48: =+beregningerkanal!K44 -> 0
B49: =+Tekst!A172 -> Noise generated in component | L49: =+beregningerkanal!L45 -> 0
B50: =+Tekst!A173 -> KO component | D50: =+beregningerkanal!D46 -> 0 | E50: =+beregningerkanal!E46 -> 0 | F50: =+beregningerkanal!F46 -> 0 | G50: =+beregningerkanal!G46 -> 0 | H50: =+beregningerkanal!H46 -> 0 | I50: =+beregningerkanal!I46 -> 0 | J50: =+beregningerkanal!J46 -> 0 | K50: =+beregningerkanal!K46 -> 0
B51: =+Tekst!A174 -> SPL from component | D51: =+beregningerkanal!D47 -> 0 | E51: =+beregningerkanal!E47 -> 0 | F51: =+beregningerkanal!F47 -> 0 | G51: =+beregningerkanal!G47 -> 0 | H51: =+beregningerkanal!H47 -> 0 | I51: =+beregningerkanal!I47 -> 0 | J51: =+beregningerkanal!J47 -> 0 | K51: =+beregningerkanal!K47 -> 0
B52: =+Tekst!A175 -> SPL after component | D52: =+beregningerkanal!D48 -> 3.010299957 | E52: =+beregningerkanal!E48 -> 3.010299957 | F52: =+beregningerkanal!F48 -> 3.010299957 | G52: =+beregningerkanal!G48 -> 3.010299957 | H52: =+beregningerkanal!H48 -> 3.010299957 | I52: =+beregningerkanal!I48 -> 3.010299957 | J52: =+beregningerkanal!J48 -> 3.010299957 | K52: =+beregningerkanal!K48 -> 3.010299957
B53: =+Tekst!A176 -> SPL from damper 1 | L53: =+beregningerkanal!L49 -> 0
B54: =+Tekst!A177 -> KO damper 1 | D54: =+beregningerkanal!D50 -> 0 | E54: =+beregningerkanal!E50 -> 0 | F54: =+beregningerkanal!F50 -> 0 | G54: =+beregningerkanal!G50 -> 0 | H54: =+beregningerkanal!H50 -> 0 | I54: =+beregningerkanal!I50 -> 0 | J54: =+beregningerkanal!J50 -> 0 | K54: =+beregningerkanal!K50 -> 0
B55: =+Tekst!A178 -> SPL from damper 1 | D55: =+beregningerkanal!D51 -> 0 | E55: =+beregningerkanal!E51 -> 0 | F55: =+beregningerkanal!F51 -> 0 | G55: =+beregningerkanal!G51 -> 0 | H55: =+beregningerkanal!H51 -> 0 | I55: =+beregningerkanal!I51 -> 0 | J55: =+beregningerkanal!J51 -> 0 | K55: =+beregningerkanal!K51 -> 0
B56: =+Tekst!A179 -> SPL after damper 1 | D56: =+beregningerkanal!D52 -> 4.771212547 | E56: =+beregningerkanal!E52 -> 4.771212547 | F56: =+beregningerkanal!F52 -> 4.771212547 | G56: =+beregningerkanal!G52 -> 4.771212547 | H56: =+beregningerkanal!H52 -> 4.771212547 | I56: =+beregningerkanal!I52 -> 4.771212547 | J56: =+beregningerkanal!J52 -> 4.771212547 | K56: =+beregningerkanal!K52 -> 4.771212547
B57: =+Tekst!A180 -> Insertion loss branch silencer 1 | D57: =+beregningerkanal!D53 -> 0 | E57: =+beregningerkanal!E53 -> 0 | F57: =+beregningerkanal!F53 -> 0 | G57: =+beregningerkanal!G53 -> 0 | H57: =+beregningerkanal!H53 -> 0 | I57: =+beregningerkanal!I53 -> 0 | J57: =+beregningerkanal!J53 -> 0 | K57: =+beregningerkanal!K53 -> 0
B58: =+Tekst!A181 -> SPL after branch silencer 1 | D58: =+beregningerkanal!D54 -> 4.771212547 | E58: =+beregningerkanal!E54 -> 4.771212547 | F58: =+beregningerkanal!F54 -> 4.771212547 | G58: =+beregningerkanal!G54 -> 4.771212547 | H58: =+beregningerkanal!H54 -> 4.771212547 | I58: =+beregningerkanal!I54 -> 4.771212547 | J58: =+beregningerkanal!J54 -> 4.771212547 | K58: =+beregningerkanal!K54 -> 4.771212547
B59: =+Tekst!A182 -> SPL from damper 2 | L59: =+beregningerkanal!L55 -> 0
B60: =+Tekst!A183 -> KO damper 2 | D60: =+beregningerkanal!D56 -> 0 | E60: =+beregningerkanal!E56 -> 0 | F60: =+beregningerkanal!F56 -> 0 | G60: =+beregningerkanal!G56 -> 0 | H60: =+beregningerkanal!H56 -> 0 | I60: =+beregningerkanal!I56 -> 0 | J60: =+beregningerkanal!J56 -> 0 | K60: =+beregningerkanal!K56 -> 0
B61: =+Tekst!A184 -> SPL from damper 2 | D61: =+beregningerkanal!D57 -> 0 | E61: =+beregningerkanal!E57 -> 0 | F61: =+beregningerkanal!F57 -> 0 | G61: =+beregningerkanal!G57 -> 0 | H61: =+beregningerkanal!H57 -> 0 | I61: =+beregningerkanal!I57 -> 0 | J61: =+beregningerkanal!J57 -> 0 | K61: =+beregningerkanal!K57 -> 0
B62: =+Tekst!A185 -> SPL after damper 2 | D62: =+beregningerkanal!D58 -> 6.020599913 | E62: =+beregningerkanal!E58 -> 6.020599913 | F62: =+beregningerkanal!F58 -> 6.020599913 | G62: =+beregningerkanal!G58 -> 6.020599913 | H62: =+beregningerkanal!H58 -> 6.020599913 | I62: =+beregningerkanal!I58 -> 6.020599913 | J62: =+beregningerkanal!J58 -> 6.020599913 | K62: =+beregningerkanal!K58 -> 6.020599913
B63: =+Tekst!A186 -> Insertion loss branch silencer 2 | D63: =+beregningerkanal!D59 -> 0 | E63: =+beregningerkanal!E59 -> 0 | F63: =+beregningerkanal!F59 -> 0 | G63: =+beregningerkanal!G59 -> 0 | H63: =+beregningerkanal!H59 -> 0 | I63: =+beregningerkanal!I59 -> 0 | J63: =+beregningerkanal!J59 -> 0 | K63: =+beregningerkanal!K59 -> 0
B64: =+Tekst!A187 -> SPL after branch silencer 2 | D64: =+beregningerkanal!D60 -> 6.020599913 | E64: =+beregningerkanal!E60 -> 6.020599913 | F64: =+beregningerkanal!F60 -> 6.020599913 | G64: =+beregningerkanal!G60 -> 6.020599913 | H64: =+beregningerkanal!H60 -> 6.020599913 | I64: =+beregningerkanal!I60 -> 6.020599913 | J64: =+beregningerkanal!J60 -> 6.020599913 | K64: =+beregningerkanal!K60 -> 6.020599913
B65: =+Tekst!A188 -> ATD transmission loss | D65: =+beregningerkanal!D61 -> 0 | E65: =+beregningerkanal!E61 -> 0 | F65: =+beregningerkanal!F61 -> 0 | G65: =+beregningerkanal!G61 -> 0 | H65: =+beregningerkanal!H61 -> 0 | I65: =+beregningerkanal!I61 -> 0 | J65: =+beregningerkanal!J61 -> 0 | K65: =+beregningerkanal!K61 -> 0
B66: =+Tekst!A189 -> Sound power level to room from duct | D66: =+beregningerkanal!D62 -> 6.020599913 | E66: =+beregningerkanal!E62 -> 6.020599913 | F66: =+beregningerkanal!F62 -> 6.020599913 | G66: =+beregningerkanal!G62 -> 6.020599913 | H66: =+beregningerkanal!H62 -> 6.020599913 | I66: =+beregningerkanal!I62 -> 6.020599913 | J66: =+beregningerkanal!J62 -> 6.020599913 | K66: =+beregningerkanal!K62 -> 6.020599913
B67: =+Tekst!A190 -> ATD generated noise | L67: =+beregningerkanal!L63 -> 0
B68: =+Tekst!A191 -> KO ATD | D68: =+beregningerkanal!D64 -> 0 | E68: =+beregningerkanal!E64 -> 0 | F68: =+beregningerkanal!F64 -> 0 | G68: =+beregningerkanal!G64 -> 0 | H68: =+beregningerkanal!H64 -> 0 | I68: =+beregningerkanal!I64 -> 0 | J68: =+beregningerkanal!J64 -> 0 | K68: =+beregningerkanal!K64 -> 0
B69: =+Tekst!A192 -> Sound power level from ATD | D69: =+beregningerkanal!D65 -> 0 | E69: =+beregningerkanal!E65 -> 0 | F69: =+beregningerkanal!F65 -> 0 | G69: =+beregningerkanal!G65 -> 0 | H69: =+beregningerkanal!H65 -> 0 | I69: =+beregningerkanal!I65 -> 0 | J69: =+beregningerkanal!J65 -> 0 | K69: =+beregningerkanal!K65 -> 0
B70: =+Tekst!A193 -> Sound power level to room from ATD - ATD generated noise | D70: =+beregningerkanal!D66 -> 0 | E70: =+beregningerkanal!E66 -> 0 | F70: =+beregningerkanal!F66 -> 0 | G70: =+beregningerkanal!G66 -> 0 | H70: =+beregningerkanal!H66 -> 0 | I70: =+beregningerkanal!I66 -> 0 | J70: =+beregningerkanal!J66 -> 0 | K70: =+beregningerkanal!K66 -> 0
B71: =+Tekst!A194 -> Total SPL to room from exhaust ATDs - gen.noise + ducted noise | D71: =+beregningerkanal!D67 -> 6.989700043 | E71: =+beregningerkanal!E67 -> 6.989700043 | F71: =+beregningerkanal!F67 -> 6.989700043 | G71: =+beregningerkanal!G67 -> 6.989700043 | H71: =+beregningerkanal!H67 -> 6.989700043 | I71: =+beregningerkanal!I67 -> 6.989700043 | J71: =+beregningerkanal!J67 -> 6.989700043 | K71: =+beregningerkanal!K67 -> 6.989700043 | L71: =+beregningerkanal!L67 -> 
B75: =+B40 -> Project | C75: =+C5 -> Free text | D75: Int
B76: =+B6 ->  | C76: =+C6 ->  | D76: =+D6 -> 
B78: LYDTRYKKNIVÅ I ROM | D78: =+beregningerkanal!D69 -> 63 | E78: =+beregningerkanal!E69 -> 125 | F78: =+beregningerkanal!F69 -> 250 | G78: =+beregningerkanal!G69 -> 500 | H78: =+beregningerkanal!H69 -> 1k | I78: =+beregningerkanal!I69 -> 2k | J78: =+beregningerkanal!J69 -> 4k | K78: =+beregningerkanal!K69 -> 8k | L78: A-sum
B79: Summert lydeffektnivå til rom fra tilluft og avtrekk | D79: =+beregningerkanal!D70 ->  | E79: =+beregningerkanal!E70 ->  | F79: =+beregningerkanal!F70 ->  | G79: =+beregningerkanal!G70 ->  | H79: =+beregningerkanal!H70 ->  | I79: =+beregningerkanal!I70 ->  | J79: =+beregningerkanal!J70 ->  | K79: =+beregningerkanal!K70 ->  | L79: =+beregningerkanal!L70 -> 
B80: Romdemping | D80: =+beregningerkanal!D71 -> 4 | E80: =+beregningerkanal!E71 -> 4 | F80: =+beregningerkanal!F71 -> 4 | G80: =+beregningerkanal!G71 -> 4 | H80: =+beregningerkanal!H71 -> 4 | I80: =+beregningerkanal!I71 -> 4 | J80: =+beregningerkanal!J71 -> 4 | K80: =+beregningerkanal!K71 -> 4
B81: Lydtrykknivå i rom | D81: =+beregningerkanal!D72 ->  | E81: =+beregningerkanal!E72 ->  | F81: =+beregningerkanal!F72 ->  | G81: =+beregningerkanal!G72 ->  | H81: =+beregningerkanal!H72 ->  | I81: =+beregningerkanal!I72 ->  | J81: =+beregningerkanal!J72 ->  | K81: =+beregningerkanal!K72 ->  | L81: =+beregningerkanal!L72 -> 
B83: LYDEFFEKTNIVÅ FRA INNTAKSENHET | D83: 63 | E83: 125 | F83: 250 | G83: 500 | H83: 1k | I83: 2k | J83: 4k | K83: 8k | L83: A-sum
B84: Lydeffektnivå fra aggregat | D84: =+beregningerkanal!D75 -> 0 | E84: =+beregningerkanal!E75 -> 0 | F84: =+beregningerkanal!F75 -> 0 | G84: =+beregningerkanal!G75 -> 0 | H84: =+beregningerkanal!H75 -> 0 | I84: =+beregningerkanal!I75 -> 0 | J84: =+beregningerkanal!J75 -> 0 | K84: =+beregningerkanal!K75 -> 0 | L84: =+beregningerkanal!L75 -> 6.987131481
B85: Demping i hovedlyddemper | D85: =+beregningerkanal!D76 -> 0 | E85: =+beregningerkanal!E76 -> 0 | F85: =+beregningerkanal!F76 -> 0 | G85: =+beregningerkanal!G76 -> 0 | H85: =+beregningerkanal!H76 -> 0 | I85: =+beregningerkanal!I76 -> 0 | J85: =+beregningerkanal!J76 -> 0 | K85: =+beregningerkanal!K76 -> 0
B86: Demping i inntaksenhet | D86: =+beregningerkanal!D77 -> 0 | E86: =+beregningerkanal!E77 -> 0 | F86: =+beregningerkanal!F77 -> 0 | G86: =+beregningerkanal!G77 -> 0 | H86: =+beregningerkanal!H77 -> 0 | I86: =+beregningerkanal!I77 -> 0 | J86: =+beregningerkanal!J77 -> 0 | K86: =+beregningerkanal!K77 -> 0
B87: Lydeffektnivå til ute - bidrag fra kanal | D87: =+beregningerkanal!D78 -> 0 | E87: =+beregningerkanal!E78 -> 0 | F87: =+beregningerkanal!F78 -> 0 | G87: =+beregningerkanal!G78 -> 0 | H87: =+beregningerkanal!H78 -> 0 | I87: =+beregningerkanal!I78 -> 0 | J87: =+beregningerkanal!J78 -> 0 | K87: =+beregningerkanal!K78 -> 0
B88: Støy generert i inntaksenhet | D88: =+beregningerkanal!D79 -> 0 | E88: =+beregningerkanal!E79 -> 0 | F88: =+beregningerkanal!F79 -> 0 | G88: =+beregningerkanal!G79 -> 0 | H88: =+beregningerkanal!H79 -> 0 | I88: =+beregningerkanal!I79 -> 0 | J88: =+beregningerkanal!J79 -> 0 | K88: =+beregningerkanal!K79 -> 0 | L88: =+beregningerkanal!L79 -> 0
B89: KO for inntaksenhet | D89: =+beregningerkanal!D80 -> 0 | E89: =+beregningerkanal!E80 -> 0 | F89: =+beregningerkanal!F80 -> 0 | G89: =+beregningerkanal!G80 -> 0 | H89: =+beregningerkanal!H80 -> 0 | I89: =+beregningerkanal!I80 -> 0 | J89: =+beregningerkanal!J80 -> 0 | K89: =+beregningerkanal!K80 -> 0
B90: Lydeffektnivå fra inntaksenhet | D90: =+beregningerkanal!D81 -> 0 | E90: =+beregningerkanal!E81 -> 0 | F90: =+beregningerkanal!F81 -> 0 | G90: =+beregningerkanal!G81 -> 0 | H90: =+beregningerkanal!H81 -> 0 | I90: =+beregningerkanal!I81 -> 0 | J90: =+beregningerkanal!J81 -> 0 | K90: =+beregningerkanal!K81 -> 0
B91: Samlet lydeffektnivå til ute fra inntaksenhet + kanalstøy | D91: =+beregningerkanal!D82 -> 3.010299957 | E91: =+beregningerkanal!E82 -> 3.010299957 | F91: =+beregningerkanal!F82 -> 3.010299957 | G91: =+beregningerkanal!G82 -> 3.010299957 | H91: =+beregningerkanal!H82 -> 3.010299957 | I91: =+beregningerkanal!I82 -> 3.010299957 | J91: =+beregningerkanal!J82 -> 3.010299957 | K91: =+beregningerkanal!K82 -> 3.010299957 | L91: =+beregningerkanal!L82 -> 
B93: LYDEFFEKTNIVÅ FRA AVKASTENHET | D93: 63 | E93: 125 | F93: 250 | G93: 500 | H93: 1k | I93: 2k | J93: 4k | K93: 8k | L93: A-sum
B94: Lydeffektnivå fra aggregat | D94: =+beregningerkanal!D85 -> 0 | E94: =+beregningerkanal!E85 -> 0 | F94: =+beregningerkanal!F85 -> 0 | G94: =+beregningerkanal!G85 -> 0 | H94: =+beregningerkanal!H85 -> 0 | I94: =+beregningerkanal!I85 -> 0 | J94: =+beregningerkanal!J85 -> 0 | K94: =+beregningerkanal!K85 -> 0 | L94: =+beregningerkanal!L85 -> 6.987131481
B95: Demping i hovedlyddemper | D95: =+beregningerkanal!D86 -> 0 | E95: =+beregningerkanal!E86 -> 0 | F95: =+beregningerkanal!F86 -> 0 | G95: =+beregningerkanal!G86 -> 0 | H95: =+beregningerkanal!H86 -> 0 | I95: =+beregningerkanal!I86 -> 0 | J95: =+beregningerkanal!J86 -> 0 | K95: =+beregningerkanal!K86 -> 0
B96: Demping i avkastenhet | D96: =+beregningerkanal!D87 -> 0 | E96: =+beregningerkanal!E87 -> 0 | F96: =+beregningerkanal!F87 -> 0 | G96: =+beregningerkanal!G87 -> 0 | H96: =+beregningerkanal!H87 -> 0 | I96: =+beregningerkanal!I87 -> 0 | J96: =+beregningerkanal!J87 -> 0 | K96: =+beregningerkanal!K87 -> 0
B97: Lydeffektnivå til ute - bidrag fra kanal | D97: =+beregningerkanal!D88 -> 0 | E97: =+beregningerkanal!E88 -> 0 | F97: =+beregningerkanal!F88 -> 0 | G97: =+beregningerkanal!G88 -> 0 | H97: =+beregningerkanal!H88 -> 0 | I97: =+beregningerkanal!I88 -> 0 | J97: =+beregningerkanal!J88 -> 0 | K97: =+beregningerkanal!K88 -> 0
B98: Støy generert i avkastenhet | L98: =+beregningerkanal!L89 -> 0
B99: KO for avkastenhet | D99: =+beregningerkanal!D90 -> 0 | E99: =+beregningerkanal!E90 -> 0 | F99: =+beregningerkanal!F90 -> 0 | G99: =+beregningerkanal!G90 -> 0 | H99: =+beregningerkanal!H90 -> 0 | I99: =+beregningerkanal!I90 -> 0 | J99: =+beregningerkanal!J90 -> 0 | K99: =+beregningerkanal!K90 -> 0
B100: Lydeffektnivå fra avkastenhet | D100: =+beregningerkanal!D91 -> 0 | E100: =+beregningerkanal!E91 -> 0 | F100: =+beregningerkanal!F91 -> 0 | G100: =+beregningerkanal!G91 -> 0 | H100: =+beregningerkanal!H91 -> 0 | I100: =+beregningerkanal!I91 -> 0 | J100: =+beregningerkanal!J91 -> 0 | K100: =+beregningerkanal!K91 -> 0
B101: Samlet lydeffektnivå til ute fra avkastenhet + kanalstøy | D101: =+beregningerkanal!D92 -> 3.010299957 | E101: =+beregningerkanal!E92 -> 3.010299957 | F101: =+beregningerkanal!F92 -> 3.010299957 | G101: =+beregningerkanal!G92 -> 3.010299957 | H101: =+beregningerkanal!H92 -> 3.010299957 | I101: =+beregningerkanal!I92 -> 3.010299957 | J101: =+beregningerkanal!J92 -> 3.010299957 | K101: =+beregningerkanal!K92 -> 3.010299957 | L101: =+beregningerkanal!L92 -> 

Sheet aggr
C2: =+Tekst!A1 -> Auracoustics 1.21
C6: =+Tekst!A86 -> Sound power level from AHU to duct
D7: 63 | E7: 125 | F7: 250 | G7: 500 | H7: 1k | I7: 2k | J7: 4k | K7: 8k
C8: =+Tekst!A87 -> Supply
C9: =+Tekst!A88 -> Exhaust
C10: =+Tekst!A89 -> Air intake
C11: =+Tekst!A90 -> Air outlet
C12: Total air flow rate | G12: =+IF(AN12=1,"l/s","m³/h") -> l/s | AN12: 1
G15: =+Tekst!A91 -> Enter

Sheet lkk
C2: =+Tekst!A1 -> Auracoustics 1.21
C6: =+Tekst!A92 -> Main duct silencer insertion loss
D7: 63 | E7: 125 | F7: 250 | G7: 500 | H7: 1k | I7: 2k | J7: 4k | K7: 8k
C8: =+Tekst!A87 -> Supply
C9: =+Tekst!A88 -> Exhaust
C10: =+Tekst!A89 -> Air intake
C11: =+Tekst!A90 -> Air outlet
G14: =+Tekst!A91 -> Enter

Sheet xtra
C2: =+Tekst!A1 -> Auracoustics 1.21
C6: =+Tekst!A102 -> Sound power level from component
C7: =+Tekst!A87 -> Supply | E7: dB(A) | I7: =+beregningerkanal!N15 -> 
D8: 63 | E8: 125 | F8: 250 | G8: 500 | H8: 1k | I8: 2k | J8: 4k | K8: 8k
C9: =+Tekst!A97 -> KO-factor
C11: =+Tekst!A88 -> Exhaust | E11: dB(A) | I11: =+beregningerkanal!N45 -> 
D12: 63 | E12: 125 | F12: 250 | G12: 500 | H12: 1k | I12: 2k | J12: 4k | K12: 8k
C13: =+Tekst!A97 -> KO-factor
C17: =+Tekst!A103 -> Component insertion loss
D18: 63 | E18: 125 | F18: 250 | G18: 500 | H18: 1k | I18: 2k | J18: 4k | K18: 8k
C19: =+C7 -> Supply
C20: =+C11 -> Exhaust
G23: =+Tekst!A91 -> Enter

Sheet spj
C2: =+Tekst!A1 -> Auracoustics 1.21
C6: =+Tekst!A96 -> Sound power level from damper
C7: =+CONCATENATE(Tekst!A83," - 1") -> Supply - 1 | E7: dB(A) | I7: =+beregningerkanal!N19 -> 
C8: =+CONCATENATE(Tekst!A87," - 2") -> Supply - 2 | E8: dB(A) | I8: =+beregningerkanal!N25 -> 
D9: 63 | E9: 125 | F9: 250 | G9: 500 | H9: 1k | I9: 2k | J9: 4k | K9: 8k
C10: =+CONCATENATE(Tekst!A97," - 1") -> KO-factor - 1
C11: =+CONCATENATE(Tekst!A97," - 2") -> KO-factor - 2
C13: =+CONCATENATE(Tekst!A88," - 1") -> Exhaust - 1 | E13: dB(A) | I13: =+beregningerkanal!N49 -> 
C14: =+CONCATENATE(Tekst!A88," - 2") -> Exhaust - 2 | E14: dB(A) | I14: =+beregningerkanal!N55 -> 
D15: 63 | E15: 125 | F15: 250 | G15: 500 | H15: 1k | I15: 2k | J15: 4k | K15: 8k
C16: =+CONCATENATE(Tekst!A97," - 1") -> KO-factor - 1
C17: =+CONCATENATE(Tekst!A97," - 2") -> KO-factor - 2
G20: =+Tekst!A91 -> Enter

Sheet lkr
C2: =+Tekst!A1 -> Auracoustics 1.21
C6: =+Tekst!A93 -> Branch silencer insertion loss
D7: 63 | E7: 125 | F7: 250 | G7: 500 | H7: 1k | I7: 2k | J7: 4k | K7: 8k
C8: =+CONCATENATE(Tekst!A87," - 1") -> Supply - 1
C9: =+CONCATENATE(Tekst!A87," - 2") -> Supply - 2
C10: =+CONCATENATE(Tekst!A88," - 1") -> Exhaust - 1
C11: =+CONCATENATE(Tekst!A88," - 2") -> Exhaust - 2
G14: =+Tekst!A91 -> Enter

Sheet vent
C2: =+Tekst!A1 -> Auracoustics 1.21
C6: =+Tekst!A94 -> Sound power level from ATD
C7: =+Tekst!A87 -> Supply | E7: dB(A) | F7: ATD air flow rate | H7: =+aggr!E12 -> 0 | I7: =+IF(aggr!$AN$12=1,"l/s","m³/h") -> l/s | J7: =+Tekst!A104 -> Number
D8: 63 | E8: 125 | F8: 250 | G8: 500 | H8: 1k | I8: 2k | J8: 4k | K8: 8k
C9: =+Tekst!A97 -> KO-factor
C11: =+Tekst!A116 -> Room- sound absorption | D11: 4 | E11: 4 | F11: 4 | G11: 4 | H11: 4 | I11: 4 | J11: 4 | K11: 4
C13: =+Tekst!A88 -> Exhaust | E13: dB(A) | F13: ATD air flow rate | H13: =+aggr!E12 -> 0 | I13: =+IF(aggr!$AN$12=1,"l/s","m³/h") -> l/s | J13: =+J7 -> Number | K13: 1
D14: 63 | E14: 125 | F14: 250 | G14: 500 | H14: 1k | I14: 2k | J14: 4k | K14: 8k
C15: =+Tekst!A97 -> KO-factor
C19: =+Tekst!A95 -> ATD transmission loss including end reflection [dB]
D20: 63 | E20: 125 | F20: 250 | G20: 500 | H20: 1k | I20: 2k | J20: 4k | K20: 8k
C21: =+C7 -> Supply
C22: =+C13 -> Exhaust
G25: =+Tekst!A91 -> Enter

Sheet inntav
C2: =+Tekst!A1 -> Auracoustics 1.21
C6: =+Tekst!A98 -> Sound power level from inlet/outlet
C7: =+Tekst!A99 -> Inlet | E7: dB(A)
D8: 63 | E8: 125 | F8: 250 | G8: 500 | H8: 1k | I8: 2k | J8: 4k | K8: 8k
C9: =+Tekst!A97 -> KO-factor
C11: =+Tekst!A100 -> Outlet | E11: dB(A)
D12: 63 | E12: 125 | F12: 250 | G12: 500 | H12: 1k | I12: 2k | J12: 4k | K12: 8k
C13: =+Tekst!A97 -> KO-factor
C17: =+Tekst!A101 -> Transmission loss including end reflection [dB]
D18: 63 | E18: 125 | F18: 250 | G18: 500 | H18: 1k | I18: 2k | J18: 4k | K18: 8k
C19: =+C7 -> Inlet
C20: =+C11 -> Outlet
G23: =+Tekst!A91 -> Enter

Sheet skjermboverh
C2: =+Tekst!A1 -> Auracoustics 1.21
H7: Ø1 | N7: Ø2 | AQ7: Ø3
H10: Ø1 | U10: Ø2 | AX10: Ø3
AA15: Rw' = | AB15: 44
AA16: A = | AB16: 10
H17: Ø4 | O17: Ø4
K19: =+Tekst!A83 -> Supply | R19: =+Tekst!A84 -> Exhaust | AN19: =+Tekst!A83 -> Supply | AU19: =+Tekst!A84 -> Exhaust
H20: Ø1 | AH20: Hz | AK20: D1 | AN20: D2 | AQ20: D3 | AT20: D1 | AW20: D2 | AZ20: D3
H21: Ø2 | AF21: 125
H22: Ø3 | AF22: 250
H23: Ø4 | AF23: 500
H24: n2 | AF24: 1000
H25: n4 | AF25: 2000
D27: =+Tekst!A78 -> Ø = Duct diameter [mm] | O27: =+AA15 -> Rw' = | P27: =+Tekst!A66 -> Weighted sound reduction index of dividing wall, Rw [dB] | AG27: D1 = | AI27: =+Tekst!A80 -> ATD transmission loss including end reflection [dB]
D28: =+Tekst!A79 -> n = number of 90° bend | O28: =+AA16 -> A = | P28: =+Tekst!A65 -> Area of dividing wall [m²] | AG28: D2 = | AI28: =+Tekst!A81 -> Ducted silencer insertion loss for each branch [dB]
AG29: D3 = | AI29: =+Tekst!A82 -> Other insertion loss from room to room [dB]

Sheet beregningeroverh (hidden)
A1: Skilleveggens areal [m²] | B1: =+skjermboverh!AB16 -> 10 | C1: =+IF(OR($B$1<5,$B$1>30),"Korrekt areal?","") ->  | H1: Mellomregning
A2: Skilleveggens veide reduksjonstall, Rw' [dB]: | B2: =+skjermboverh!AB15 -> 44 | H2: 125 | I2: 250 | J2: 500 | K2: 1000 | L2: 2000
A3: Beregningsgrunnlag, tilluft | C3: Resultater tilluft | H3: [m²]
A4: Anslutningsdimensjon ventil [mm] | B4: =+skjermboverh!K23 -> 0 | C4: Frekvens [Hz] | D4: Avvik [dB] | E4: Avvik med lyddemper [dB] | H4: =+(B4/1000)^2*PI()/4 -> 0
A5: Hovedkanaldimensjon før avgrening til rom 1 [mm] | B5: =+skjermboverh!K20 -> 0 | C5: 125 | D5: =+B63 ->  | E5: =+B66 ->  | H5: =+(B5/1000)^2*PI()/4 -> 0
A6: Hovedkanaldimensjon mellom avgreninger [mm] | B6: =+skjermboverh!K21 -> 0 | C6: 250 | D6: =+C63 ->  | E6: =+C66 ->  | H6: =+(B6/1000)^2*PI()/4 -> 0
A7: Hovedkanaldimensjon etter avgrening til rom 2 [mm] | B7: =+skjermboverh!K22 -> 0 | C7: 500 | D7: =+D63 ->  | E7: =+D66 ->  | H7: =+(B7/1000)^2*PI()/4 -> 0
A8: Antall 90° bend fra avgrening til ventil | B8: =+skjermboverh!K25 -> 0 | C8: 1000 | D8: =+E63 ->  | E8: =+E66 ->  | H8: =+IF(($B$4<271),0,IF(($B$4>271),0,0)) -> 0 | I8: =+IF(($B$4<271),0,IF(($B$4>271),0,0)) -> 0 | J8: =+IF(($B$4<271),0,IF(($B$4>271),(1*$B8*2))) -> 0 | K8: =+IF(($B$4<271),1*$B8*2,IF(($B$4>271),2*$B8*2)) -> 0 | L8: =+IF(($B$4<271),2*$B8*2,IF(($B$4>271),3*$B8*2)) -> 0
A9: Antall 90° bend mellom avgreninger | B9: =+skjermboverh!K24 -> 0 | C9: 2000 | D9: =+F63 ->  | E9: =+F66 ->  | H9: =+IF(($B$6<271),0,IF(($B$6>271),0,0)) -> 0 | I9: =+IF(($B$6<271),0,IF(($B$6>271),0,0)) -> 0 | J9: =+IF(($B$6<271),0,IF(($B$6>271),1*$B9)) -> 0 | K9: =+IF(($B$6<271),1*$B9,IF(($B$6>271),2*$B9)) -> 0 | L9: =+IF(($B$6<271),2*$B9,IF(($B$6>271),3*$B9)) -> 0
A10: Frekvensbånd [Hz] | B10: 125 | C10: 250 | D10: 500 | E10: 1000 | F10: 2000
A11: Dempning i ventil/kammer inkl. enderefleksjon [dB] | B11: =+skjermboverh!AJ21 -> 0 | C11: =+skjermboverh!AJ22 -> 0 | D11: =+skjermboverh!AJ23 -> 0 | E11: =+skjermboverh!AJ24 -> 0 | F11: =+skjermboverh!AJ25 -> 0
A12: Øvrig dempning [dB] | B12: =+skjermboverh!AP21 -> 0 | C12: =+skjermboverh!AP22 -> 0 | D12: =+skjermboverh!AP23 -> 0 | E12: =+skjermboverh!AP24 -> 0 | F12: =+skjermboverh!AP25 -> 0
A13: Dempning i eventuell lyddemper [dB] | B13: =+skjermboverh!AM21*2 -> 0 | C13: =+skjermboverh!AM22*2 -> 0 | D13: =+skjermboverh!AM23*2 -> 0 | E13: =+skjermboverh!AM24*2 -> 0 | F13: =+skjermboverh!AM25*2 -> 0
A14: Beregningsgrunnlag, avtrekk | C14: Resultater avtrekk
A15: Anslutningsdimensjon ventil [mm] | B15: =+skjermboverh!R23 -> 0 | C15: Frekvens [Hz] | D15: Avvik [dB] | E15: Avvik med lyddemper [dB] | H15: =+(B15/1000)^2*PI()/4 -> 0
A16: Kanaldimensjon før avgrening til rom 1 [mm] | B16: =+skjermboverh!R20 -> 0 | C16: 125 | D16: =+B71 -> 0 | E16: =+B74 -> 0 | H16: =+(B16/1000)^2*PI()/4 -> 0
A17: Kanaldimensjon mellom avgreninger [mm] | B17: =+skjermboverh!R21 -> 0 | C17: 250 | D17: =+C71 -> 0 | E17: =+C74 -> 0 | H17: =+(B17/1000)^2*PI()/4 -> 0
A18: Kanaldimensjon etter avgrening til rom 2 [mm] | B18: =+skjermboverh!R22 -> 0 | C18: 500 | D18: =+D71 -> 0 | E18: =+D74 -> 0 | H18: =+(B18/1000)^2*PI()/4 -> 0
A19: Antall 90° bend fra avgrening til ventil | B19: =+skjermboverh!R25 -> 0 | C19: 1000 | D19: =+E71 -> 0 | E19: =+E74 -> 0 | H19: =+IF(($B$15<271),0,IF(($B$15>271),0,0)) -> 0 | I19: =+IF(($B$15<271),0,IF(($B$15>271),0,0)) -> 0 | J19: =+IF(($B$15<271),0,IF(($B$15>271),(1*$B19*2))) -> 0 | K19: =+IF(($B$15<271),1*$B19*2,IF(($B$15>271),2*$B19*2)) -> 0 | L19: =IF(($B$15<271),2*$B19*2,IF(($B$15>271),3*$B19*2)) -> 0
A20: Antall 90° bend mellom avgreninger | B20: =+skjermboverh!R24 -> 0 | C20: 2000 | D20: =+F71 -> 0 | E20: =+F74 -> 0 | H20: =+IF(($B$17<271),0,IF(($B$17>271),0,0)) -> 0 | I20: =+IF(($B$17<271),0,IF(($B$17>271),0,0)) -> 0 | J20: =+IF(($B$17<271),0,IF(($B$17>271),1*$B20)) -> 0 | K20: =+IF(($B$17<271),1*$B20,IF(($B$17>271),2*$B20)) -> 0 | L20: =IF(($B$17<271),2*$B20,IF(($B$17>271),3*$B20)) -> 0
A21: Frekvensbånd [Hz] | B21: 125 | C21: 250 | D21: 500 | E21: 1000 | F21: 2000
A22: Dempning i ventil/kammer inkl. enderefleksjon [dB] | B22: =+skjermboverh!AS21 -> 0 | C22: =+skjermboverh!AS22 -> 0 | D22: =+skjermboverh!AS23 -> 0 | E22: =+skjermboverh!AS24 -> 0 | F22: =+skjermboverh!AS25 -> 0
A23: Øvrig dempning [dB] | B23: =+skjermboverh!AY21 -> 0 | C23: =+skjermboverh!AY22 -> 0 | D23: =+skjermboverh!AY23 -> 0 | E23: =+skjermboverh!AY24 -> 0 | F23: =+skjermboverh!AY25 -> 0
A24: Dempning i eventuell lyddemper [dB] | B24: =+skjermboverh!AV21*2 -> 0 | C24: =+skjermboverh!AV22*2 -> 0 | D24: =+skjermboverh!AV23*2 -> 0 | E24: =+skjermboverh!AV24*2 -> 0 | F24: =+skjermboverh!AV25*2 -> 0
A25: Forutsetninger
A26: - Beregningen tar utgangspunkt i at lyden gjennom ventilasjonsanlegget maksimalt skal øke
A27: veggens lydgjennomgang med 1 dB.
A28: - Himlingens dempning må være minst halvparten av skilleveggens i alle frekvenser.
A29: - 1 stk. tillufts- og 1 stk. avtrekksventil pr. rom (Kun én kanal gir 3 dB sikkerhet.)
A30: - Like ventildimensjoner i begge rom
A31: - Standard spirokanaler og -detaljer
A32: - Dimensjoner mellom Ø100 og Ø500
A33: - Dempning i kanaler er neglisjert
A34: - Beregning av lydfordeling i avgreninger har høy usikkerhet
A35: - For økt nøyaktighet må det regnes med 1/3-oktavbånd.
A36: - Ventiler forutsettes plassert med 1/2-kules utbredelsesflate.
A37: Referanser
A38: NS-EN ISO 717-1
A39: NS 8175
A40: Ole B. Stampe, "Lyd i VVS-anlæg", 1998
A41: Byggforskserien
A43: Beregninger, tilluft
A44: Ventil rom 1 (minus enderefleksjon) | B44: =IF((B11-B$80)>0,(B11-B$80),0) ->  | C44: =IF((C11-C$80)>0,(C11-C$80),0) ->  | D44: =IF((D11-D$80)>0,(D11-D$80),0) ->  | E44: =IF((E11-E$80)>0,(E11-E$80),0) ->  | F44: =IF((F11-F$80)>0,(F11-F$80),0) -> 
A45: Ventil rom 2 | B45: =+B11 -> 0 | C45: =+C11 -> 0 | D45: =+D11 -> 0 | E45: =+E11 -> 0 | F45: =+F11 -> 0
A46: Avgreninger | B46: =-10*LOG(($H$6*$H$4)/(($H$5+$H$6)*($H$4+$H$7))) ->  | C46: =-10*LOG(($H$6*$H$4)/(($H$5+$H$6)*($H$4+$H$7))) ->  | D46: =-10*LOG(($H$6*$H$4)/(($H$5+$H$6)*($H$4+$H$7))) ->  | E46: =-10*LOG(($H$6*$H$4)/(($H$5+$H$6)*($H$4+$H$7))) ->  | F46: =-10*LOG(($H$6*$H$4)/(($H$5+$H$6)*($H$4+$H$7))) -> 
A47: Bend | B47: =+H8+H9 -> 0 | C47: =+I8+I9 -> 0 | D47: =+J8+J9 -> 0 | E47: =+K8+K9 -> 0 | F47: =+L8+L9 -> 0
A48: Øvrig | B48: =+B12 -> 0 | C48: =+C12 -> 0 | D48: =+D12 -> 0 | E48: =+E12 -> 0 | F48: =+F12 -> 0
A49: Sum | B49: =+SUM(B44:B48) ->  | C49: =+SUM(C44:C48) ->  | D49: =+SUM(D44:D48) ->  | E49: =+SUM(E44:E48) ->  | F49: =+SUM(F44:F48) -> 
A51: Beregninger, avtrekk
A52: Ventil rom 1 (minus enderefleksjon) | B52: =IF((B22-B$81)>0,(B22-B$81),0) ->  | C52: =IF((C22-C$81)>0,(C22-C$81),0) ->  | D52: =IF((D22-D$81)>0,(D22-D$81),0) ->  | E52: =IF((E22-E$81)>0,(E22-E$81),0) ->  | F52: =IF((F22-F$81)>0,(F22-F$81),0) -> 
A53: Ventil rom 2 | B53: =+B22 -> 0 | C53: =+C22 -> 0 | D53: =+D22 -> 0 | E53: =+E22 -> 0 | F53: =+F22 -> 0
A54: Avgreninger | B54: =-10*LOG(($H$17*$H$15)/(($H$16+$H$6)*($H$15+$H$18))) ->  | C54: =-10*LOG(($H$17*$H$15)/(($H$16+$H$6)*($H$15+$H$18))) ->  | D54: =-10*LOG(($H$17*$H$15)/(($H$16+$H$6)*($H$15+$H$18))) ->  | E54: =-10*LOG(($H$17*$H$15)/(($H$16+$H$6)*($H$15+$H$18))) ->  | F54: =-10*LOG(($H$17*$H$15)/(($H$16+$H$6)*($H$15+$H$18))) -> 
A55: Bend | B55: =+H19+H20 -> 0 | C55: =+I19+I20 -> 0 | D55: =+J19+J20 -> 0 | E55: =+K19+K20 -> 0 | F55: =+L19+L20 -> 0
A56: Øvrig | B56: =+B23 -> 0 | C56: =+C23 -> 0 | D56: =+D23 -> 0 | E56: =+E23 -> 0 | F56: =+F23 -> 0
A57: Sum | B57: =+SUM(B52:B56) ->  | C57: =+SUM(C52:C56) ->  | D57: =+SUM(D52:D56) ->  | E57: =+SUM(E52:E56) ->  | F57: =+SUM(F52:F56) -> 
A59: Vurderinger
A60: Tilluft
A61: Resultat dempning [dB] | B61: =+IF(ISNUMBER(B49),B49,1) -> 1 | C61: =+IF(ISNUMBER(C49),C49,1) -> 1 | D61: =+IF(ISNUMBER(D49),D49,1) -> 1 | E61: =+IF(ISNUMBER(E49),E49,1) -> 1 | F61: =+IF(ISNUMBER(F49),F49,1) -> 1
A62: Nødvendig dempning totalt [dB] | B62: =+IF((B$78+10*LOG((($H$4+$H$15)/$B$1))+9)>0,(B$78+10*LOG((($H$4+$H$15)/$B$1))+9),0) ->  | C62: =+IF((C$78+10*LOG((($H$4+$H$15)/$B$1))+9)>0,(C$78+10*LOG((($H$4+$H$15)/$B$1))+9),0) ->  | D62: =+IF((D$78+10*LOG((($H$4+$H$15)/$B$1))+9)>0,(D$78+10*LOG((($H$4+$H$15)/$B$1))+9),0) ->  | E62: =+IF((E$78+10*LOG((($H$4+$H$15)/$B$1))+9)>0,(E$78+10*LOG((($H$4+$H$15)/$B$1))+9),0) ->  | F62: =+IF((F$78+10*LOG((($H$4+$H$15)/$B$1))+9)>0,(F$78+10*LOG((($H$4+$H$15)/$B$1))+9),0) ->  | G62: Stampe formel 8.1 s. 95
A63: Behov for tilleggsdempning [dB] | B63: =+IF((B62-B61)>0,(B62-B61),0) ->  | C63: =+IF((C62-C61)>0,(C62-C61),0) ->  | D63: =+IF((D62-D61)>0,(D62-D61),0) ->  | E63: =+IF((E62-E61)>0,(E62-E61),0) ->  | F63: =+IF((F62-F61)>0,(F62-F61),0) -> 
A64: Resultat dempning med lyddemper [dB] | B64: =+B61+B13 -> 1 | C64: =+C61+C13 -> 1 | D64: =+D61+D13 -> 1 | E64: =+E61+E13 -> 1 | F64: =+F61+F13 -> 1
A65: Korrigert ned til maks 60 dB | B65: =+IF(B64>60,60,B64) -> 1 | C65: =+IF(C64>60,60,C64) -> 1 | D65: =+IF(D64>60,60,D64) -> 1 | E65: =+IF(E64>60,60,E64) -> 1 | F65: =+IF(F64>60,60,F64) -> 1
A66: Ytterligere dempebehov [dB] | B66: =+IF((B62-B64)>0,(B62-B64),0) ->  | C66: =+IF((C62-C64)>0,(C62-C64),0) ->  | D66: =+IF((D62-D64)>0,(D62-D64),0) ->  | E66: =+IF((E62-E64)>0,(E62-E64),0) ->  | F66: =+IF((F62-F64)>0,(F62-F64),0) -> 
A68: Avtrekk
A69: Resultat dempning [dB] | B69: =+IF(ISNUMBER(B57),B57,1) -> 1 | C69: =+IF(ISNUMBER(C57),C57,1) -> 1 | D69: =+IF(ISNUMBER(D57),D57,1) -> 1 | E69: =+IF(ISNUMBER(E57),E57,1) -> 1 | F69: =+IF(ISNUMBER(F57),F57,1) -> 1
A70: Nødvendig dempning totalt [dB] | B70: =+IF(ISNUMBER(B57),IF((B$78+10*LOG((($H$4+$H$15)/$B$1))+9)>0,(B$78+10*LOG((($H$4+$H$15)/$B$1))+9),0),1) -> 1 | C70: =+IF(ISNUMBER(C57),IF((C$78+10*LOG((($H$4+$H$15)/$B$1))+9)>0,(C$78+10*LOG((($H$4+$H$15)/$B$1))+9),0),1) -> 1 | D70: =+IF(ISNUMBER(D57),IF((D$78+10*LOG((($H$4+$H$15)/$B$1))+9)>0,(D$78+10*LOG((($H$4+$H$15)/$B$1))+9),0),1) -> 1 | E70: =+IF(ISNUMBER(E57),IF((E$78+10*LOG((($H$4+$H$15)/$B$1))+9)>0,(E$78+10*LOG((($H$4+$H$15)/$B$1))+9),0),1) -> 1 | F70: =+IF(ISNUMBER(F57),IF((F$78+10*LOG((($H$4+$H$15)/$B$1))+9)>0,(F$78+10*LOG((($H$4+$H$15)/$B$1))+9),0),1) -> 1
A71: Behov for tilleggsdempning [dB] | B71: =+IF((B70-B69)>0,(B70-B69),0) -> 0 | C71: =+IF((C70-C69)>0,(C70-C69),0) -> 0 | D71: =+IF((D70-D69)>0,(D70-D69),0) -> 0 | E71: =+IF((E70-E69)>0,(E70-E69),0) -> 0 | F71: =+IF((F70-F69)>0,(F70-F69),0) -> 0
A72: Resultat dempning med lyddemper [dB] | B72: =+B69+B24 -> 1 | C72: =+C69+C24 -> 1 | D72: =+D69+D24 -> 1 | E72: =+E69+E24 -> 1 | F72: =+F69+F24 -> 1
A73: Korrigert ned til maks 60 dB | B73: =+IF(B72>60,60,B72) -> 1 | C73: =+IF(C72>60,60,C72) -> 1 | D73: =+IF(D72>60,60,D72) -> 1 | E73: =+IF(E72>60,60,E72) -> 1 | F73: =+IF(F72>60,60,F72) -> 1
A74: Ytterligere dempebehov [dB] | B74: =+IF((B70-B72)>0,(B70-B72),0) -> 0 | C74: =+IF((C70-C72)>0,(C70-C72),0) -> 0 | D74: =+IF((D70-D72)>0,(D70-D72),0) -> 0 | E74: =+IF((E70-E72)>0,(E70-E72),0) -> 0 | F74: =+IF((F70-F72)>0,(F70-F72),0) -> 0
A76: Veiekurver 1/1-okt. [dB] | B76: 125 | C76: 250 | D76: 500 | E76: 1000 | F76: 2000
A77: 52 | B77: 36 | C77: 45 | D77: 52 | E77: 55 | F77: 56
A78: =+B2 -> 44 | B78: =+B77-($A$77-$B$2) -> 28 | C78: =+C$77-($A$77-$A78) -> 37 | D78: =+D$77-($A$77-$A78) -> 44 | E78: =+E$77-($A$77-$A78) -> 47 | F78: =+F$77-($A$77-$A78) -> 48
A80: Enderefleksjon (plan åpning), tilluft [dB] | B80: =(10*LOG(1+(((340/(12.57*B$76))^2)*(2*PI()/((($B$4/1000)^2)*PI()/4))))) ->  | C80: =(10*LOG(1+(((340/(12.57*C$76))^2)*(2*PI()/((($B$4/1000)^2)*PI()/4))))) ->  | D80: =(10*LOG(1+(((340/(12.57*D$76))^2)*(2*PI()/((($B$4/1000)^2)*PI()/4))))) ->  | E80: =(10*LOG(1+(((340/(12.57*E$76))^2)*(2*PI()/((($B$4/1000)^2)*PI()/4))))) ->  | F80: =(10*LOG(1+(((340/(12.57*F$76))^2)*(2*PI()/((($B$4/1000)^2)*PI()/4))))) -> 
A81: Enderefleksjon (plan åpning), avtrekk [dB] | B81: =(10*LOG(1+(((340/(12.57*B$76))^2)*(2*PI()/((($B$15/1000)^2)*PI()/4))))) ->  | C81: =(10*LOG(1+(((340/(12.57*C$76))^2)*(2*PI()/((($B$15/1000)^2)*PI()/4))))) ->  | D81: =(10*LOG(1+(((340/(12.57*D$76))^2)*(2*PI()/((($B$15/1000)^2)*PI()/4))))) ->  | E81: =(10*LOG(1+(((340/(12.57*E$76))^2)*(2*PI()/((($B$15/1000)^2)*PI()/4))))) ->  | F81: =(10*LOG(1+(((340/(12.57*F$76))^2)*(2*PI()/((($B$15/1000)^2)*PI()/4))))) -> 
A84: Nødvendig dempebehov: | B84: =+MAX(B70,B62) ->  | C84: =+MAX(C70,C62) ->  | D84: =+MAX(D70,D62) ->  | E84: =+MAX(E70,E62) ->  | F84: =+MAX(F70,F62) ->  | G84: Til graf
A85: (Lagt inn 20/8 for å gjøre uavhengig av om tilluft eller avtrekk er lagt inn)

Sheet skjermbavstand
C2: =+Tekst!A1 -> Auracoustics 1.21
D6: Sound source | L6: =+CONCATENATE("SPL ",+D10," m from source: ",beregningeravstand!B10," dB") -> SPL 20 m from source: 43 dB
D7: 1
C8: =+Tekst!A32 -> Sound power level from sound source | D8: 80 | E8: dB
C10: =+Tekst!A33 -> Distance from sound source | D10: 20 | E10: m

Sheet beregningeravstand (hidden)
A1: Beregning av lydreduksjon i direktefeltet
A2: Fra skjermbilde
A3: lydeffektnivå: | B3: =+skjermbavstand!D8 -> 80 | C3: dB
A4: Avstand: | B4: =+skjermbavstand!D10 -> 20 | C4: m
A5: Utbredelse: | B5: =+skjermbavstand!D7 -> 1
A6: Beregning av lydtrykknivå
A7: Utbredelseskoeffisient: | B7: =+IF(B5=1,1,IF(B5=2,2,IF(B5=3,4,IF(B5=4,8)))) -> 1
A8: reduksjon: | B8: =ABS(10*LOG(B7/(4*PI()*B4^2))) -> 37.01269855 | C8: dB
A9: lydtrykknivå: | B9: =+B3-B8 -> 42.98730145 | C9: dB
A10: overføres til skjermbilde: | B10: =+IF(B9>19.5,ROUND(B9,0),"< 20") -> 43 | C10: dB
A12: Diagram
A13: m | B13: 1 | C13: =+($K13-$B13)/10*2 -> 3.8 | D13: =+($K13-$B13)/10*3 -> 5.7 | E13: =+($K13-$B13)/10*4 -> 7.6 | F13: =+($K13-$B13)/10*5 -> 9.5 | G13: =+($K13-$B13)/10*6 -> 11.4 | H13: =+($K13-$B13)/10*7 -> 13.3 | I13: =+($K13-$B13)/10*8 -> 15.2 | J13: =+($K13-$B13)/10*9 -> 17.1 | K13: =+B4 -> 20
A14: dB | B14: =$B$3-ABS(10*LOG($B$7/(4*PI()*B13^2))) -> 69.00790136 | C14: =$B$3-ABS(10*LOG($B$7/(4*PI()*C13^2))) -> 57.41222943 | D14: 53.89040425 | E14: 51.39162951 | F14: 49.45342925 | G14: 47.86980433 | H14: 46.53086854 | I14: 45.3710296 | J14: 44.34797915 | K14: 42.98730145
A25: avstand | B25: reduksjon, dB
A26: m | B26: kuleutbr. | C26: halvkule | D26: ¼-kule | E26: 1/8-kule | G26: Tabell
B27: fritt punkt | C27: på tak/v. | D27: hjørne 2 fl. | E27: hjørne 3 fl. | G27: =+Tekst!A34 -> Free (square propagation)
G28: =+Tekst!A35 -> Roof or wall (1/2-square)
G29: =+Tekst!A36 -> Corner between two surfaces (1/4-square)
A30: 1 | B30: =ABS(10*LOG(1/(4*PI()*A30^2))) -> 10.99209864 | C30: =ABS(10*LOG(2/(4*PI()*A30^2))) -> 7.981798684 | D30: =ABS(10*LOG(4/(4*PI()*A30^2))) -> 4.971498727 | E30: =ABS(10*LOG(8/(4*PI()*A30^2))) -> 1.96119877 | G30: =+Tekst!A37 -> Corner between three surfaces (1/8-square)
A31: 2 | B31: 17.01269855 | C31: =ABS(10*LOG(2/(4*PI()*A31^2))) -> 14.0023986 | D31: =ABS(10*LOG(4/(4*PI()*A31^2))) -> 10.99209864 | E31: =ABS(10*LOG(8/(4*PI()*A31^2))) -> 7.981798684
A32: 3 | B32: 20.53452373 | C32: =ABS(10*LOG(2/(4*PI()*A32^2))) -> 17.52422378 | D32: =ABS(10*LOG(4/(4*PI()*A32^2))) -> 14.51392382 | E32: =ABS(10*LOG(8/(4*PI()*A32^2))) -> 11.50362386
A33: 4 | B33: 23.03329847 | C33: =ABS(10*LOG(2/(4*PI()*A33^2))) -> 20.02299851 | D33: =ABS(10*LOG(4/(4*PI()*A33^2))) -> 17.01269855 | E33: =ABS(10*LOG(8/(4*PI()*A33^2))) -> 14.0023986
A34: 5 | B34: 24.97149873 | C34: 21.96119877 | D34: 18.95089881 | E34: 15.94059886
A35: 10 | B35: 30.99209864 | C35: 27.98179868 | D35: 24.97149873 | E35: 21.96119877
A36: 15 | B36: 34.51392382 | C36: 31.50362386 | D36: 28.49332391 | E36: 25.48302395
A37: 20 | B37: 37.01269855 | C37: 34.0023986 | D37: 30.99209864 | E37: 27.98179868
A38: 40 | B38: 43.03329847 | C38: 40.02299851 | D38: 37.01269855 | E38: 34.0023986
A39: 60 | B39: 46.55512365 | C39: 43.54482369 | D39: 40.53452373 | E39: 37.52422378
A40: 80 | B40: 49.05389838 | C40: 46.04359842 | D40: 43.03329847 | E40: 40.02299851
A41: 100 | B41: 50.99209864 | C41: 47.98179868 | D41: 44.97149873 | E41: 41.96119877
A42: 150 | B42: 54.51392382 | C42: 51.50362386 | D42: 48.49332391 | E42: 45.48302395
A43: 200 | B43: 57.01269855 | C43: 54.0023986 | D43: 50.99209864 | E43: 47.98179868
A44: 1000 | B44: 70.99209864 | C44: 67.98179868 | D44: 64.97149873 | E44: 61.96119877

Sheet midling
C2: =+Tekst!A1 -> Auracoustics 1.21
C6: =+Tekst!A63 -> Averaging dB-levels
C8: Level 1 | E8: dB | I8: =+Tekst!A64 -> Resulting sound level | J8: =IF(D8="","",10*LOG((10^(0.1*D8)+10^(0.1*D10)+10^(0.1*D12)+10^(0.1*D14)+10^(0.1*D16))/(9-COUNTIF(D8:D16,"")))) ->  | K8: dB
C10: Level 2 | E10: dB
C12: Level 3 | E12: dB
C14: Level 4 | E14: dB
C16: Level 5 | E16: dB

Sheet kalkaddlike
C2: =+Tekst!A1 -> Auracoustics 1.21
C6: =+Tekst!A60 -> Addition of similar dB-levels
C8: Sound level of one source | D8: 55 | E8: dB
C10: Number of equal sources | D10: 2 | I10: Resulting sound level | J10: =10*LOG(D10)+D8 -> 58.01029996 | K10: dB

Sheet kalkaddulike
C2: =+Tekst!A1 -> Auracoustics 1.21
C6: =+Tekst!A61 -> Addition of different dB-levels
C8: Level 1 | E8: dB | I8: Resulting sound level: | J8: =+IF(D8="","",10*LOG(10^(0.1*D8)+10^(0.1*D10)+10^(0.1*D12)+10^(0.1*D14)+10^(0.1*D16))) ->  | K8: dB
C10: Level 2 | E10: dB
C12: Level 3 | E12: dB
C14: Level 4 | E14: dB
C16: Level 5 | E16: dB

Sheet kalksub
C2: =+Tekst!A1 -> Auracoustics 1.21
C6: =+Tekst!A62 -> Subtraction of dB-levels
C8: Level 1 | E8: dB
C10: Level 2 | E10: dB | I10: Resulting sound level: | J10: =IF(ISNUMBER(10*LOG(10^(0.1*D8)-10^(0.1*D10))),(10*LOG(10^(0.1*D8)-10^(0.1*D10))),0) -> 0 | K10: dB

Sheet diaaddlike
C2: =+Tekst!A1 -> Auracoustics 1.21
C6: Addtion of equal dB-values

Sheet diaaddulike
C2: =+Tekst!A1 -> Auracoustics 1.21
C6: Addition of different dB-values

Sheet diasub
C2: =+Tekst!A1 -> Auracoustics 1.21
C6: =+Tekst!A62 -> Subtraction of dB-levels

Sheet diautbr
C2: =+Tekst!A1 -> Auracoustics 1.21
C6: Free field sound propagation
